{"text_format":"3","workbook":"xlsx","n_sheets":1,"sheets":["Sheet1"],"not_rendered":{"defined_names":1},"read":"whole","date_system":"1900"}

{"sheet":"Sheet1","index":0,"n_rows":2289,"n_cols":17,"rows_kept":2289,"merged":[[41,0,41,5],[110,0,110,5],[117,0,118,0],[117,1,118,1],[117,2,118,2],[117,3,118,3],[117,5,118,5],[130,0,131,0],[130,1,131,1],[130,3,131,3],[130,5,131,5],[132,0,133,0],[132,1,133,1],[132,3,133,3],[132,5,133,5],[159,0,159,5],[223,0,223,5],[293,0,293,5],[364,0,364,5],[436,0,436,5],[509,0,509,5],[574,0,574,5],[644,0,644,5],[714,0,714,5],[771,0,771,5],[839,1,839,5],[913,1,913,5],[985,0,985,5],[1056,0,1056,5],[1126,0,1126,5],[1198,0,1198,5],[1264,0,1264,5],[1328,0,1328,5],[1400,0,1400,5],[1469,0,1469,5],[1535,0,1535,5],[1594,0,1594,5],[1653,0,1653,5],[1704,0,1704,5],[1767,0,1767,5],[1839,0,1839,5],[1912,0,1912,5],[1941,0,1941,5],[1964,0,1964,5],[1983,0,1983,5],[2015,0,2015,5],[2017,3,2017,4],[2038,0,2038,5],[2040,3,2040,4],[2057,0,2057,5],[2059,3,2059,4],[2093,0,2093,5],[2095,3,2095,4],[2133,0,2133,5],[2135,3,2135,4],[2191,0,2191,5],[2193,3,2193,4],[2248,0,2248,5],[2250,3,2250,4],[2260,2,2260,5],[2261,2,2261,5],[2262,2,2262,5],[2263,2,2263,5],[2264,2,2264,5],[2265,2,2265,5],[2266,2,2266,5],[2267,2,2267,5],[2268,2,2268,5],[2269,2,2269,5],[2270,2,2270,5],[2271,2,2271,5],[2272,2,2272,5],[2273,2,2273,5],[2274,2,2274,5],[2275,2,2275,5],[2276,2,2276,5],[2277,2,2277,5],[2278,2,2278,5],[2279,2,2279,5],[2280,2,2280,5],[2281,2,2281,5],[2282,2,2282,5],[2283,2,2283,5],[2284,2,2284,5],[2285,2,2285,5]]}
["Item","SC/Li","Description","Unit","Scheduled Quantity","Rate","Amount\n(excluding VAT)"]
[null,null,"AREA-A: REGIONS 1 AND 2"]
[]
[null,null,"SERIES 0 : GENERAL"]
[null,null,"SECTION 001 : GENERAL REQUIREMENTS"]
[null,null,"AND CHARGES"]
[]
["B001.01",null,"Preliminary and general charges"]
[null,null,".01 Fixed charges","month/per project",36]
["B001.01",null,".02 Time-related charges","month/per project",36]
["B001.01",null,".03 The Contractor’s establishment on site","no ",10]
[]
["B001.02",null,"Location of existing services by locaters (detecting machine)","m",{"v":32000,"d":"32,000"}]
[]
["B001.03","Li","Excavate by hand to expose existing"]
[null,null," services and backfill (LI)","per inspection hole",{"v":2000,"d":"2,000"}]
[]
["001.04",null,"Compliance with the Occupational Health"]
[null,null,"and Safety Act and applicable regulations"]
[null,null,".01 Provision of a Health and Safety plan","lump Sum/per project",3]
["B001.04",null,".02 Provision of a Health and Safety file","lump Sum/per project",3]
["B001.04",null,".03 Provision of construction supervisors","per month/ per project",36]
["B001.04",null,".04 Provision of a safety officer (fullpart time)","per month/ per project",36]
["00.1.04",null,".05 Health and Safety training","lump Sum/per project",3]
["00.1.04",null,"0.6 Provision of personal protective clothing and equipment ","lump Sum/per project",3]
["00.1.04",null,"0.7 Provision of safety fences, signs and barricades ","lump Sum/per project",3]
["B001.04",null,".08 Implementation of OHS plan","per month/ per project",72]
["B001.05",null,"Community Liaison Officer (CLO)","per month/ per project",72,{"v":16928,"d":"R16,928.00"},{"$f":"F28*E28","v":{"v":1218816,"d":"R1,218,816.00"}}]
[]
["B001.06",null,"Compliance with Environment Management Plan","per month/ per project",36]
[]
["B001.07",null,"Provision for administration of local contractors","lump Sum/per project",3]
[]
["B001.08",null,"Training of Targeted Labour and local Smme","lump Sum/per project",3]
[]
["B001.09","SC","Appointment of Local Security Company","Per month/ per site",72]
[]
[]
[]
[]
[]
["TOTAL CARRIED TO NEXT PAGE"]
["Item","SC/Li","Description","Unit","Scheduled Quantity","Rate","Amount\n(excluding VAT)"]
[null,null,"Carried over from Series 0: General:"]
[]
["001.10",null,"Day works"]
[null,null,".01 Provision of skilled, semi skilled and unskilled for day works"]
[null,null,"     .01 Qualified Artisan","hr",900]
[null,null,"     .02 Semi-skilled labourer","hr",3000]
[null,null,"     .03 Labourer","hr",9000]
[]
[null,null,".02 Plant Hire (use of plant already established on site for day works)"]
[null,null,"     .01 Tipper Truck (10 ton)","hr",100]
[null,null,"     .02 Flatbed truck (5 ton)","hr",100]
[null,null,"     .03 Light delivery vehicle","hr",100]
[null,null,"     .04 Water Tanker (large)","hr",100]
[null,null,"     .05 Rammer","hr",100]
[null,null,"     .06 TLB","hr",1000]
[null,null,"     .07 Butt welding machine","hr",500]
[]
["B001.11","SC","Print, supply, distributions and removal of water interruptions notice colour printed "]
[null,null,".01 Color printed on correx ","m²",500]
[null,null,".02 A5 flyers","each",5000]
{"$rows_empty":47}
["TOTAL CARRIED TO SUMMARY"]
["Item","SC/Li","Description","Unit","Scheduled Quantity","Rate","Amount"]
[" B001.12",null," PENALTIES TO APPLY"]
[]
[null,null,".01 Where incorrect water meter data has been submitted to CoT"," Per incorrect job card",null,"- R500.00"]
[null,null," .02 The late completion of work"," Per day",null,"- R5,000.00"]
[null,null," .03 Non-conforming in terms of the Construction Regulations"]
[null,null,"     .01 Hazardous chemical/oil spill and/or dumping "," per incident",null,"- R10 000.00 "]
[]
[null,null,"     .02 Damage to cultural and historical sites."," per incident",null,"- R5 000.00 "]
[null,null,"     .03 Unauthorised blasting activities"," per incident",null,"- R5 000.00 "]
[null,null,"     .04  Transportation of workers in an unsecure \n            vehicle (transporting tools, equipment and \n            material)"," per incident",null,"- R5 000.00 "]
[null,null,"     .05  Insufficient Road signs or Unavailability of \n            flag personnel or Improper road signs layout"," per incident",null,"- R5 000.00 "]
[null,null,"     .06  No OHS Officer appointed by the contractor  ","per incident",null,"R   10 000 + work stoppage"]
[null,null,"     .07  Failure to correct OHS file notices within\n            7 days","per incident",null,"- R   5 000.00 "]
[null,null,"     .08  Littering on site","per incident",null,"- R1,000.00"]
[null,null,"     .09  Lighting of illegal fires on site","per incident",null,"- R1,000.00"]
[null,null,"     .10  Persistent or un-repaired fuel and oil leaks","per incident",null,"- R1,000.00"]
[null,null,"     .11  Dumping of material in side drains ","per incident",null,"- R1,000.00"]
[null,null,"     .12  Possession or use of intoxicating \n            substances on site","per incident",null,"- R1,000.00"]
[null,null,"     .13  Any vehicles being driven in excess of ","per incident",null,"- R1,000.00"]
[null,null,"          designated speed limits"]
[null,null,"     .14  Urination  and defecation anywhere except in ","per incident",null,"- R1,000.00"]
[null,null,"           designated areas"]
[null,null,"     .15  Failure to issue PPE to Employees          ","per incident",null,"- R5,000.00"]
[null,null,"     .16  Non usage of PPE issued                         ","per incident",null,"- R500.00"]
[null,null,"     .17  All unsafe/ practices on site e.g.;-                                      ","per incident",null,"- R500.00"]
[null,null,"          • Boarding on/off moving vehicle or plant."]
[null,null,"          • Talking with a cell phone while operating \n            a plant"]
[null,null,"         • Smoking near hazardous chemicals"]
[null,null,".04 Unnecessary damage or unauthorised removal \n      of trees","per tree",null,"-R 3,000.00"]
[null,null,"Late submission of monthly progress reports.","per month",null,"-R 3,000.00"]
[null,null,"Late submission of monthly Payment Certificate and all supporting documents, outside the agreed window period for submission.","per month",null,"-R 5,000.00"]
{"$rows_empty":16}
["TOTAL CARRIED TO SUMMARY"]
["Item","SC/Li","Description","Unit","Scheduled Quantity","Rate","Amount\n(excluding VAT)"]
[]
[null,null,"SERIES 0 : GENERAL"]
[]
[null,null,"SECTION 002:  ENGINEER'S ACCOMMODATION"]
[]
["B102.01",null,"Services"]
[]
["B102",null,".01 Services for offices and laboratories ","per month/ per project",36]
[null,null,".02 Services for cooking and ablution facilities on Site for the Engineer's Site staff","per month/ per project",36]
[]
[null,null,".02 Treatment and maintenance of areas surrounding offices and laboratories ","per month/ per project",36]
[]
[null,null,".03 Office and Laboratory accomodation ","per month/ per project",36]
[]
[null,null,".04 Provision of survey equipments and assistants ","per month/ per project",36]
{"$rows_empty":9}
[{"$nulls":13}," "]
{"$rows_empty":37}
["TOTAL CARRIED TO SUMMARY",{"$nulls":5},{"$f":"SUM(G169:G223)","v":{"v":0,"d":"R0.00"}}]
["Item","SC/Li","Description","Unit","Scheduled Quantity","Rate","Amount\n(excluding VAT)"]
[]
[null,null,"SERIES 1:  ANCILLARY WORK"]
[]
[null,null,"SECTION 101:  SITE CLEARING AND GRUBBING"]
[]
["101.01",null,"Clearing and grubbing"]
[null,"SC/Li",".01  Areas ","m²",{"v":1000,"d":"1,000"}]
["B101.01","SC/Li",".02  Strips 3m wide","m",{"v":10000,"d":"10,000"}]
[]
["101.02",null,"Cutting and removing large trees with a girth:"]
[null,"SC/Li",".01  Exceeding 1m and up to and including 2m (LI)","No",5]
[null,"SC/Li",".02  Exceeding 2m and up to and including 3m (LI)","No",5]
[]
["101.03",null,"Grubbing and the removal of the stumps and "]
[null,null,"roots of large trees with a girth:"]
[null,"SC/Li",".01  Exceeding 1m and up to and including 2m ","No",5]
[null,"SC/Li",".02  Exceeding 2m and up to and including 3m ","No",5]
[]
[101.04,null,"Reclearing areas (only on the written instructions of the Engineer)"]
[null,null,".01  Strips 3m wide","m",603]
[]
[101.05,null,"Removal and Disposal of specific elements"]
[null,null,".02 Concrete or brick elements (reinforced or unreinforced)","m³",20]
[null,null,".02.01 Demolition of existing floor slabs","m³",20]
[null,null,".02.02 Block Paved driveways and walkways","m³",20]
{"$rows_empty":43}
["TOTAL CARRIED TO SUMMARY",{"$nulls":5},{"$f":"SUM(G232:G293)","v":{"v":0,"d":"R0.00"}}]
["Item","SC/Li","Description","Unit","Scheduled Quantity","Rate","Amount\n(excluding VAT)"]
[]
[null,null,"SERIES 1:  ANCILLARY WORK"]
[]
[null,null,"SECTION 102:  ACCOMMODATION TRAFFIC"]
[]
["102.10",null,"Provision of temporary fencing and gates"]
[null,"SC",".01     Temporary fencing","m",{"v":1000,"d":"1,000"}]
[null,"SC",".02     Temporary gates","No",5]
[]
[]
["102.12",null,"Provision of temporary bridges for "]
[null,null,"maintaining access to properties"]
[null,null,".01     Temporary pedestrian bridges","No",10]
[null,null,".02     Temporary vehicular bridges","No",10]
[]
["102.13",null,"Moving of temporary bridges to and their "]
[null,null,"re-erection in entirely new positions"]
[null,null,".01    Temporary pedestrian bridges","No",50]
[null,null,".02    Temporary vehicular bridges","No",50]
[]
["B102.14",null,"Temporary traffic-control facilities"]
[null,"Li",".01     Flagmen ","per month/ per project ",36]
[null,null,".02     Portable STOP and GO signs","No",20]
[null,null,".03      Amber flicker lights","No",20]
[null,null,".04     Road signs, TR-series, 1200mm in "]
[null,null,"diameter or 900 x 675mm if rectangular ","No",50]
[null,null,".05     Road signs, TW-series, 1 524mm sides","No ",50]
[null,null,".06     Road signs,  TG-series"," m²",30]
[null,null,".07     Danger plates and delineators","No ",50]
[null,null,".09     Traffic cones","lump sum / per project",4]
[null,null,".10     Plastic New Jersey Barrier","No",100]
{"$rows_empty":38}
["TOTAL CARRIED TO SUMMARY"]
["Item","SC/Li","Description","Unit","Scheduled Quantity","Rate","Amount\n(excluding VAT)"]
[]
[null,null,"SERIES 1:  ANCILLARY WORK"]
[]
[103,null,"SECTION 103:  OVERHAUL"]
[]
["104.01",null,"Overhaul on material hauled outside the defined free-haul boundaries","m³km",{"v":32706,"d":"32,706"}]
{"$rows_empty":64}
["TOTAL CARRIED TO SUMMARY"]
["Item","SC/Li","Description","Unit","Scheduled Quantity","Rate","Amount\n(excluding VAT)"]
[]
[null,null,"SERIES 1:  ANCILLARY WORK"]
[]
[null,null,"SECTION 104:  LANDSCAPING AND GRASSING"]
[]
["104.01",null,"Trimming"]
[null,null,".01 Machine trimming","m²",{"v":20000,"d":"20,000"}]
["B104.01","Li",".02 Hand trimming  ","m²",{"v":60000,"d":"60,000"}]
[]
["104.03",null,"Preparing areas for grassing and ground covers"]
[null,null,".02 Topsoiling on the Site with -"]
[null,null,".01 topsoil obtained from the Site or"]
[null,null,"borrow areas provided by Employer","m³",50]
[null,null,".02 topsoil provided by the Contractor "]
[null,null,"from other sources (including all haul)","m³",{"v":10000,"d":"10,000"}]
["104.03",null,".05     Stockpiling of topsoil","m³",{"v":10000,"d":"10,000"}]
[]
["104.08",null,"Extra work for landscaping","m²",6000]
{"$rows_empty":53}
["TOTAL CARRIED TO SUMMARY"]
["Item","SC/Li","Description","Unit","Scheduled Quantity","Rate","Amount\n(excluding VAT)"]
[]
[null,null,"SERIES 1:  ANCILLARY WORK"]
[]
[105,null,"SECTION 105:  FENCING"]
[]
[105.01,null,"Supply and erection of new fencing material"]
[]
[null,"(Li)",".01.01 Concrete palisade fence complete as detailed on CoT standard detail 7151-BW112.","m",40]
[]
[105.02,null,"New gates"]
[]
[null,"(Li)",".01 Double leaf gate as detailed on CoT standard detail 7151-BW112, 5m wide , 2.4m high. complete with electrification and connectors to suit exisitng electrified fence.","No",1]
[]
[null,null,".02 Security - 1.8m hign diamond mesh fence complete with 500mm flat rap barbed wire","m",35]
[]
["105.03",null,"Moving of existing fences and gates"]
[]
[null,"Li",".01  Fences"]
[]
[null,null,".01.01  Ordinary fences","m",{"v":1000,"d":"1,000"}]
[]
[null,"Li",".01.02  Security fences (including wrought iron and concrete palisade fences)","m",250]
[]
[null,null,".01.03  All types of brick wall including plaster walls","m",250]
[]
[null,null,".01.04  All types of concrete walls","m",250]
[]
[null,"Li",".02  Gates","No",50]
[]
["105.04","Li","Dismantling of existing fences","m",{"v":1000,"d":"1,000"}]
[]
[105.05,null,"The drilling and blasting of holes for posts and anchors","No",25]
[]
["105.06",null,"Provision of temporary fencing"]
[]
[null,"Li",".01  Ordinary fences","m",{"v":1000,"d":"1,000"}]
[]
[null,"Li",".02  Security fences","m",750]
[]
[null,"Li",".03  Diamond mesh","m2",500]
[]
["105.07",null,"Ring bolts for anchoring fencing to structures","No.",50]
{"$rows_empty":21}
["TOTAL CARRIED TO SUMMARY"]
["Item","SC/Li","Description","Unit","Scheduled Quantity","Rate","Amount\n(excluding VAT)"]
[null,null,"SERIES 2:  EARTHWORKS"]
[]
[null,null,"SECTION 202:  TRENCHING"]
[]
["202.01",null,"Trench excavations"]
[null,null,".01     Up to 1,0 m wide"]
[null,null,"         .01     up to 2,0 m deep","m³",{"v":28000,"d":"28,000"}]
[null,null,"         .02     over 2,0 m deep","m³",{"v":2000,"d":"2,000"}]
[]
[null,null,".02     Over 1.0m and up to 2,0 m wide"]
[null,null,"         .01     Over 1.0m up and  to 1,5 m deep","m³",{"v":5624,"d":"5,624"}]
[null,null,"         .02     Over 1.5m up and  to 2,0 m deep","m³",{"v":28000,"d":"28,000"}]
[null,null,"         .03     Over 2.0m up and  to 2,5 m deep","m³",{"v":2000,"d":"2,000"}]
[null,null,"         .04     Over 2.5m up and  to 3,0 m deep","m³",364]
[]
["202.02",null,"Extra over items 202.01, 202.03 and 202.04 for excavating in"]
[null,null,".02     hard material","m³",{"v":10000,"d":"10,000"}]
[]
["B202.03",null,"Excavations outside the normal trench profile","m³",{"v":2000,"d":"2,000"}]
[]
["202.04","Li","Hand excavations Extra-over item 202.01  ","m³",{"v":20000,"d":"20,000"}]
[]
["B202.17","Li","Hand excavation for trenches inside erven."]
[null,null,"Trenches 500 mm wide and 600 mm deep.  ","m³",500]
[]
["202.06","Li","The backfilling of trenches with material obtained"]
[null,null," from excavations (excluding backfill around the pipe barrel) ","m³",{"v":17000,"d":"17,000"}]
[]
["B202.07",null,"Extra over items 202.06 and 202.13 for using"]
[null,null," backfill material obtained"]
[null,null,".01     from borrow areas","m³",{"v":1000,"d":"1,000"}]
[null,null,".02    from sources provided by Contractor","m³",{"v":8000,"d":"8,000"}]
["B202.07",null,".03    G4 provided by Contractor","m³",{"v":5000,"d":"5,000"}]
[]
["202.08",null,"Backfilling additional excavations in trench floor using:"]
[null,null,".02     concrete aggregate, max size 38 mm","m³",50]
[]
["202.10","SC","Removal of spoil material -"]
[null,null,".02     to dumping areas to be provided by the Contractor","m³",{"v":18000,"d":"18,000"}]
[]
["B202.11",null,"Timbering and shoring left in excavations","m³",50]
[]
["202.12",null,"Extra over item 202.06 for additional compaction "]
[null,null,"of back-fill to 93% of modified AASHTO density in road reserves ","m³",{"v":8000,"d":"8,000"}]
[]
["202.13",null,"Backfilling trenches with soilcrete under tar","m³",50]
[]
["202.15",null,"Reinstatement of bitumen surfaced roads ","m²",{"v":5000,"d":"5,000"}]
[]
["B202.16",null,"Cutting and removal of premix:"]
[null,null,".01     Premix thickness up to 100 mm","m²",{"v":4000,"d":"4,000"}]
[null,null,".02     Premix thickness 101 mm up to 200 mm","m²",{"v":1000,"d":"1,000"}]
[null,null,".03     Premix thickness 201 mm up to 300 mm","m²",100]
[null,null,".04     Premix thicker than 300 mm","m²",100]
{"$rows_empty":14}
["TOTAL CARRIED TO SUMMARY"]
["Item","SC/Li","Description","Unit","Scheduled Quantity","Rate","Amount\n(excluding VAT)"]
[]
[null,null,"SERIES 4:  WATER RETICULATION"]
[null,null,"AND WATER MAINS"]
[]
[null,null,"SECTION 402:  CONSTRUCTION"]
[]
["402.01",null,"Supplying, laying and jointing of water pipes irrespective of depth: "]
[null,null,".01 Class 12 oPVC pipes, SANS 966: 1998 Part 1 ",{"$nulls":6},"Dia ","Wide","Depth","Length","Excavation","Com Backfill","Select Backfill","Spoil"]
[null,"Li","      .01     110 mm dia","m",{"v":6000,"d":"6,000"},{"$nulls":3},"      .01     110 mm dia",0.11,{"$f":"J655+0.4","v":0.51},{"$f":"J655+0.8+0.3","v":1.21},{"$f":"SUM(E655+E701+E720)","v":{"v":12050,"d":"12,050"}},{"$f":"M655*L655*K655","v":7436.055},{"$f":"M655*0.8*K655","v":4916.4},{"$f":"(M655*K655*(J655+0.3))-(PI()*(J655/2)^2*M655)","v":2405.1400207858346},{"$f":"(PI()*(J655/2)^2*M655)","v":114.51497921416495}]
[null,"Li","      .02     160 mm dia","m",{"v":6000,"d":"6,000"},{"$nulls":3},"      .02     160 mm dia",0.16,{"$f":"J656+0.4","v":0.56},{"$f":"J656+0.8+0.3","v":1.26},{"$f":"SUM(E656+E702+E721)","v":{"v":12050,"d":"12,050"}},{"$f":"M656*L656*K656","v":8502.480000000001},{"$f":"M656*0.8*K656","v":5398.400000000001},2861.8003745551555,{"$f":"(PI()*(J656/2)^2*M656)","v":242.27962544484484}]
[null,"Li","      .03      200 mm dia","m",{"v":2000,"d":"2,000"},{"$nulls":3},"      .03      200 mm dia",0.2,0.6000000000000001,1.3,{"$f":"SUM(E657+E703+E722)","v":{"v":4050,"d":"4,050"}},3159.0000000000005,1944.0000000000002,1087.7654975296136,127.23450247038663]
[null,null,"      .04      250 mm dia","m",{"v":2000,"d":"2,000"},{"$nulls":3},"      .04      250 mm dia",0.25,0.65,1.35,{"$f":"SUM(E658+E704+E723)","v":{"v":4050,"d":"4,050"}},3553.875,2106,1249.071089890021,198.80391010997909]
[null,null,"      .05      315 mm dia","m",{"v":2000,"d":"2,000"},{"$nulls":3},"      .05     315 mm dia",0.315,0.7150000000000001,1.415,{"$f":"SUM(E659+E705+E724)","v":{"v":3009,"d":"3,009"}},3044.280525,1721.1480000000004,1088.6377465157968,234.49477848420344]
[null,null,"      .06      355 mm dia","m",{"v":1000,"d":"1,000"},{"$nulls":3},"      .06     355 mm dia",0.355,0.755,1.455,{"$f":"SUM(E660)","v":{"v":1000,"d":"1,000"}},1098.525,604,395.5451964578366,98.97980354216341]
[null,null,"      .07      400 mm dia","m",{"v":1000,"d":"1,000"},{"$nulls":3},"      .07     400 mm dia",0.4,0.8,1.5000000000000002,{"$f":"SUM(E661+E706+E726)","v":{"v":2050,"d":"2,050"}},2460.0000000000005,1312,890.3894024056369,257.61059759436307]
[null,null,"      .08      450 mm dia","m",500,{"$nulls":3},"      .08     450 mm dia",0.45,0.8500000000000001,1.55,{"$f":"SUM(E662)","v":500},658.7500000000001,340.00000000000006,239.2284359560084,79.52156404399165]
[null,null,"      .09      500 mm dia","m",500,{"$nulls":3},"      .09     500 mm dia",0.5,0.9,1.6,{"$f":"SUM(E663)","v":500},720,360,{"$f":"(M663*K663*(J663+0.3))-(PI()*(J663/2)^2*M663)","v":261.825229575319},98.17477042468103]
[null,null,"      .10      630 mm dia","m",500,{"$nulls":3},"      .09     630 mm dia",0.63,1.03,1.7300000000000002,{"$f":"E708+E728","v":700},1247.3300000000002,576.8000000000001,{"$f":"(M664*K664*(J664+0.3))-(PI()*(J664/2)^2*M664)","v":452.3228282632869},218.20717173671306]
[null,null,"      .11      710 mm dia","m",500]
[null,null,"      .12      800 mm dia","m",500]
[]
[null,null,".02 Class 16 oPVC pipes, SANS 966: 1998 "]
[null,"Li","      .01     110 mm dia","m",{"v":6000,"d":"6,000"}]
[null,"Li","      .02     160 mm dia","m",{"v":6000,"d":"6,000"}]
[null,"Li","      .03      200 mm dia","m",{"v":2000,"d":"2,000"}]
[null,null,"      .04      250 mm dia","m",{"v":2000,"d":"2,000"}]
[null,null,"      .05      315 mm dia","m",{"v":2000,"d":"2,000"}]
[null,null,"      .06      355 mm dia","m",{"v":1000,"d":"1,000"}]
[null,null,"      .07      400 mm dia","m",{"v":1000,"d":"1,000"}]
[null,null,"      .08      450 mm dia","m",500]
[null,null,"      .09      500 mm dia","m",500]
[null,null,"      .10      630 mm dia","m",500]
[null,null,"      .11      710 mm dia","m",500]
[null,null,"      .12      800 mm dia","m",500]
[]
[null,null,".03 SANS / ISO 4427  PE100 PN12.5 HDPE pipes ( including all fittings and couplings) "]
[null,null," ",{"$nulls":9},"Rock 30%",{"$f":"#REF!*0.3","v":{"$error":"#REF!"}}]
[null,"Li","       .01     32 mm dia PN16","m",400,{"$nulls":7},"Road 20%",{"$f":"#REF!*0.2","v":{"$error":"#REF!"}}]
[null,"Li","       .02     40 mm dia PN 16","m",400,{"$nulls":7},"Trimming",{"$f":"#REF!*2","v":{"$error":"#REF!"}}]
[null,"Li","       .03     50 mm dia PN16","m",400,{"$nulls":7},"Top soil",{"$f":"#REF!*0.1*1.2","v":{"$error":"#REF!"}}]
[null,"Li","       .04     63 mm dia PN 12.5","m",500]
[null,"Li","       .05     110 mm dia PN 12.5","m",{"v":3000,"d":"3,000"}]
[null,"Li","       .06     160 mm dia PN 12.5","m",{"v":3000,"d":"3,000"}]
[null,"Li","       .07     200 mm dia PN 12.5","m",{"v":1000,"d":"1,000"}]
[null,null,"       .08     250 mm dia PN 12.5","m",50]
[null,null,"       .09     315 mm dia PN 12.5","m",50]
[null,null,"       .10     355 mm dia PN 12.5","m",50]
[null,null,"       .11     400 mm dia PN 12.5","m",50]
[null,null,"       .12     500 mm dia PN 12.5","m",50]
[null,null,"       .13     630 mm dia PN 12.5","m",50]
[null,null,"       .14     710 mm dia PN 12.5","m",50]
[null,null,"       .15     800 mm dia PN 12.5","m",50]
[]
[null,null,".04 PN 12.5 PVC –O 500 pipes, SANS / ISO 16422: 2008"]
[null,"Li","      .01     110 mm dia","m",{"v":6000,"d":"6,000"}]
[null,"Li","      .02     160 mm dia","m",{"v":6000,"d":"6,000"}]
[null,"Li","      .03     200 mm dia","m",{"v":2000,"d":"2,000"}]
[null,null,"      .04     250 mm dia","m",{"v":2000,"d":"2,000"}]
[null,null,"      .05     315 mm dia","m",{"v":1000,"d":"1,000"}]
[null,null,"      .06     400 mm dia","m",{"v":1000,"d":"1,000"}]
[null,null,"      .07     500 mm dia","m",{"v":1000,"d":"1,000"}]
[null,null,"      .08     630 mm dia","m",500]
[null,null,"      .09     710 mm dia","m",100]
[null,null,"      .10     800 mm dia","m",100]
[]
[]
[]
[]
["TOTAL CARRIED TO NEXT PAGE"]
["Item","SC/Li","Description","Unit","Scheduled Quantity","Rate","Amount\n(excluding VAT)"]
[null,null,"Carried over from Series 4: Water reticulation and water mains:"]
[]
[402.01,null,".05 PN 16 PVC –O 500 pipes, SANS / ISO 16422: 2008"]
[null,"Li","      .01     110 mm dia","m",50]
[null,"Li","      .02     160 mm dia","m",50]
[null,"Li","      .03     200 mm dia","m",50]
[null,null,"      .04     250 mm dia","m",50]
[null,null,"      .05     315 mm dia","m",9]
[null,null,"      .06     355 mm dia","m",15]
[null,null,"      .07     400 mm dia","m",50]
[null,null,"      .08     500 mm dia","m",50]
[null,null,"      .09     630 mm dia","m",200]
[null,null,"      .10     710 mm dia","m",100]
[null,null,"      .11     800 mm dia","m",{"v":2620,"d":"2,620"}]
[]
[null,null,".06  Mild steel pipes to API 5L Grade x42 steel plate with liquid epoxy (Sigmaline SF23) external coating and internal lining, with flanges drilled to SANS 1123/25"]
[]
[null,null,"Short straight pipe sections with puddle flange, both ends flanged with puddle flange to withstand 2500kPa working pressure, Flanges drilled to SANS 1123/25 :"]
[]
[null,null,".01       150mm NB, 500mm in length, & 4.5mm wall, ","No",6]
[]
[null,null,".02       150mm NB, 900mm in length, & 4.5mm wall, ","No",2]
[]
[null,null,".03       150mm NB, 1250mm in length, & 4.5mm wall, Including removable pressure reading gauge and  mounting to steel pipe to CoT Detail","No",6]
[]
[null,null,".04       200mm NB, 1000mm in length, & 4.5mm wall, ","No",2]
[]
[null,null,".05       200mm NB, 1000mm in length, & 4.5mm wall, ","No",8]
[]
[null,null,".06       200mm NB, 850mm in length, & 4.5mm wall, ","No",2]
[]
[null,null,".07       250mm NB, 1000mm in length, & 4.5mm wall, ","No",2]
[]
[null,null,".08       250mm NB, 1250mm in length, & 4.5mm wall, Including removable pressure reading gauge and  mounting to steel pipe to CoT Detail","No",6]
[]
[null,null,".09       300mm NB, 1250mm in length, & 4.5mm wall, Including removable pressure reading gauge and  mounting to steel pipe to CoT Detail","No",2]
[]
[null,null,".10       350mm NB, 1250mm in length, & 4.5mm wall, Including removable pressure reading gauge and  mounting to steel pipe to CoT Detail","No",2]
[]
[null,null,".11       600mm NB, 350mm in length, & 4.5mm wall, ","No",2]
[]
[null,null,".12       600mm NB, 1250mm in length, & 4.5mm wall, Including removable pressure reading gauge and  mounting to steel pipe to CoT Detail","No",10]
[]
[null,null,".13       800mm NB, 1250mm in length, & 4.5mm wall, Including removable pressure reading gauge and  mounting to steel pipe to CoT Detail","No",12]
[]
[null,null,".07  DN 150 'S' Bend Pipe with long raduis bend and flanged both ends"]
[null,null,".01     150mm NB, A = 1090mm, B = 150mm x 4.5mm wall","No",2]
[]
[null,null,".08  DN 150 Mainfold pipe special, 45 Lateral tee with, long raduis bend, off take's flanged the other end flanged to suit anchored 'VJ' flange adaptor"]
[null,null,".01     150mm NB , 1182mm in length, 4.5mm wall, Mainfold piece pipe","No",1]
[]
[]
[]
[]
[]
["TOTAL CARRIED TO NEXT PAGE"]
["Item","SC/Li","Description","Unit","Scheduled Quantity","Rate","Amount\n(excluding VAT)"]
[null,null,"Carried over from Series 4: Water reticulation and water mains:"]
[]
[null,null,".09  DN 150 Mainfold pipe both ends flanged with 2x DN25 off take's, 1x DN80 flanged tee branch (off take's = sockets welded to DN80 pipe and drilled in pipe through sockets)"]
[null,null,".01    150mm NB x 150mm NB, L = 661, 4.5mm wall, Mainfold piece pipe with of  take's","No",1]
[]
[null,null,".10 Medium Galvanised mild steel, medium class pipes,  "]
[null,null," including all fittings and couplings (wrapped with "]
[null,null,"grease tape and then covered with PVC tape): (LI)"]
[null,"Li","      .05      80 mm dia","m",20]
[null,"Li","      .06      100 mm dia","m",10]
[null,"Li","      .07      150 mm dia","m",10]
[null,"Li","      .08      200 mm dia","m",10]
[]
["402.02",null,"Extra over item 402.01 for providing and installing"]
[null,null,"fittings, valves and specials:"]
[null,null,".01     oPVC  90º Bends (Class 16):"]
[null,null,"         .01     110 mm dia","No",25]
[null,null,"         .02     160 mm dia","No",25]
[null,null,"         .03     200 mm dia","No",10]
[null,null,"         .04     250 mm dia","No",10]
[]
[null,null,".02     oPVC  45º Bends (Class 16):"]
[null,null,"         .01     110 mm dia","No",60]
[null,null,"         .02     160 mm dia","No",60]
[null,null,"         .03     200 mm dia","No",15]
[null,null,"         .04     250 mm dia","No",15]
[]
[null,null,".03     uPVC  22½º Bends (Class 16):"]
[null,null,"         .01     110 mm dia","No",20]
[null,null,"         .02     160 mm dia","No",20]
[null,null,"         .03     200 mm dia","No",10]
[null,null,"         .04     250 mm dia","No",10]
[]
[null,null,".04     oPVC  11¼º Bends (Class 16):"]
[null,null,"         .01     110 mm dia","No",20]
[null,null,"         .02     160 mm dia","No",20]
[null,null,"         .03     200 mm dia","No",10]
[null,null,"         .04     250 mm dia","No",10]
[]
[null,null,".05     PVC-O  90º Bends (Class 16):"]
[null,null,"         .01     110 mm dia","No",2]
[null,null,"         .02     160 mm dia","No",2]
[null,null,"         .03     200 mm dia","No",2]
[null,null,"         .04     250 mm dia","No",2]
[null,null,"         .05     315 mm dia","No",2]
[null,null,"         .06     400 mm dia","No",2]
[null,null,"         .07     500 mm dia","No",2]
[null,null,"         .08     630 mm dia","No",2]
[null,null,"         .09     710 mm dia","No",2]
[null,null,"         .10     800 mm dia","No",2]
[]
[null,null,".06     PVC-O  45º Bends (Class 16):"]
[null,null,"         .01     110 mm dia","No",2]
[null,null,"         .02     160 mm dia","No",2]
[null,null,"         .03     200 mm dia","No",2]
[null,null,"         .04     250 mm dia","No",2]
[null,null,"         .05     315 mm dia","No",2]
[null,null,"         .06     400 mm dia","No",2]
[null,null,"         .07     500 mm dia","No",2]
[null,null,"         .08     630 mm dia","No",2]
[null,null,"         .09     710 mm dia","No",2]
[null,null,"         .10     800 mm dia","No",2]
[]
[]
[]
[]
[null,"TOTAL CARRIED TO NEXT PAGE"]
["Item","SC/Li","Description","Unit","Scheduled Quantity","Rate","Amount\n(excluding VAT)"]
[null,null,"Carried over from Series 4: Water reticulation and water mains:"]
[]
[null,null,".07    PVC-O  22½º Bends (Class 16):"]
[null,null,"         .01     110 mm dia","No",2]
[null,null,"         .02     160 mm dia","No",2]
[null,null,"         .03     200 mm dia","No",2]
[null,null,"         .04     250 mm dia","No",2]
[null,null,"         .05     315 mm dia","No",2]
[null,null,"         .06     400 mm dia","No",2]
[null,null,"         .07     500 mm dia","No",2]
[null,null,"         .08     630 mm dia","No",2]
[null,null,"         .09     710 mm dia","No",2]
[null,null,"         .10     800 mm dia","No",2]
[]
[null,null,".08     PVC-O  11¼º Bends (Class 16):"]
[null,null,"         .01     110 mm dia","No",2]
[null,null,"         .02     160 mm dia","No",2]
[null,null,"         .03     200 mm dia","No",2]
[null,null,"         .04     250 mm dia","No",2]
[null,null,"         .05     315 mm dia","No",2]
[null,null,"         .06     400 mm dia","No",2]
[null,null,"         .07     500 mm dia","No",2]
[null,null,"         .08     630 mm dia","No",2]
[null,null,"         .09     710 mm dia","No",2]
[null,null,"         .10     800 mm dia","No",2]
[]
[null,null,".09     HDPE  90º Bends (Class 25):"]
[null,null,"         .01     110 mm dia","No",2]
[null,null,"         .02     160 mm dia","No",2]
[null,null,"         .03     200 mm dia","No",2]
[null,null,"         .04     250 mm dia","No",2]
[null,null,"         .05     315 mm dia","No",2]
[null,null,"         .06     400 mm dia","No",2]
[null,null,"         .07     500 mm dia","No",2]
[null,null,"         .08     630 mm dia","No",2]
[null,null,"         .09     710 mm dia","No",2]
[null,null,"         .10     800 mm dia","No",2]
[]
[null,null,".10     HDPE  45º Bends (Class 25):"]
[null,null,"         .01     110 mm dia","No",2]
[null,null,"         .02     160 mm dia","No",2]
[null,null,"         .03     200 mm dia","No",2]
[null,null,"         .04     250 mm dia","No",2]
[null,null,"         .05     315 mm dia","No",2]
[null,null,"         .06     400 mm dia","No",2]
[null,null,"         .07     500 mm dia","No",2]
[null,null,"         .08     630 mm dia","No",2]
[null,null,"         .09     710 mm dia","No",2]
[null,null,"         .10     800 mm dia","No",2]
[]
[null,null,".11    HDPE  22½º Bends (Class 25):"]
[null,null,"         .01     110 mm dia","No",2]
[null,null,"         .02     160 mm dia","No",2]
[null,null,"         .03     200 mm dia","No",2]
[null,null,"         .04     250 mm dia","No",2]
[null,null,"         .05     315 mm dia","No",2]
[null,null,"         .06     400 mm dia","No",2]
[null,null,"         .07     500 mm dia","No",2]
[null,null,"         .08     630 mm dia","No",2]
[null,null,"         .09     710 mm dia","No",2]
[null,null,"         .10     800 mm dia","No",2]
{"$rows_empty":11}
[null,"TOTAL CARRIED TO NEXT PAGE"]
["Item","SC/Li","Description","Unit","Scheduled Quantity","Rate","Amount\n(excluding VAT)"]
[null,null,"Carried over from Series 4: Water reticulation and water mains:"]
[]
[null,null,".12     HDPE  11¼º Bends (Class 25):"]
[null,null,"         .01     110 mm dia","No",2]
[null,null,"         .02     160 mm dia","No",2]
[null,null,"         .03     200 mm dia","No",2]
[null,null,"         .04     250 mm dia","No",2]
[null,null,"         .05     315 mm dia","No",2]
[null,null,"         .06     400 mm dia","No",2]
[null,null,"         .07     500 mm dia","No",2]
[null,null,"         .08     630 mm dia","No",2]
[null,null,"         .09     710 mm dia","No",2]
[null,null,"         .10     800 mm dia","No",2]
[]
[null,null,".13     Mild Steel 90º Bends for PVC pipes "]
[null,null,"(epoxy powder coated - refer to Series 401.05):"]
[null,null,"  with VJ flanged adaptors dedicated long barrel"]
[null,null,"         .01     100 mm dia","No",2]
[null,null,"         .02     150 mm dia","No",2]
[null,null,"         .03     200 mm dia","No",4]
[null,null,"         .04     250 mm dia","No",3]
[null,null,"         .05     300 mm dia","No",2]
[null,null,"         .06     350 mm dia","No",2]
[null,null,"         .07     400 mm dia","No",2]
[null,null,"         .08     500 mm dia","No",2]
[null,null,"         .09     600 mm dia","No",2]
[null,null,"         .10     700 mm dia","No",2]
[null,null,"         .11     800 mm dia","No",6]
[]
[null,null,".14     Mild Steel 45º Bends for PVC pipes "]
[null,null,"(epoxy powder coated - refer to Series 401.05):"]
[null,null,"  with VJ flanged adaptors dedicated long barrel"]
[null,null,"         .01     100 mm dia","No",2]
[null,null,"         .02     150 mm dia","No",2]
[null,null,"         .03     200 mm dia","No",2]
[null,null,"         .04     250 mm dia","No",2]
[null,null,"         .05     300 mm dia","No",2]
[null,null,"         .06     350 mm dia","No",2]
[null,null,"         .07     400 mm dia","No",2]
[null,null,"         .08     500 mm dia","No",2]
[null,null,"         .09     600 mm dia","No",2]
[null,null,"         .10     700 mm dia","No",2]
[null,null,"         .11     800 mm dia","No",2]
[]
[null,null,".15     Mild Steel 22½º Bends for PVC pipes "]
[null,null,"(epoxy powder coated - refer to Series 401.05):"]
[null,null,"  with VJ flanged adaptors dedicated long barrel"]
[null,null,"         .01     100 mm dia","No",2]
[null,null,"         .02     150 mm dia","No",2]
[null,null,"         .03     200 mm dia","No",2]
[null,null,"         .04     250 mm dia","No",2]
[null,null,"         .05     300 mm dia","No",2]
[null,null,"         .06     350 mm dia","No",2]
[null,null,"         .07     400 mm dia","No",2]
[null,null,"         .08     500 mm dia","No",2]
[null,null,"         .09     600 mm dia","No",2]
[null,null,"         .10     700 mm dia","No",2]
[null,null,"         .11     800 mm dia","No",2]
{"$rows_empty":12}
["TOTAL CARRIED TO NEXT PAGE"]
["Item","SC/Li","Description","Unit","Scheduled Quantity","Rate","Amount\n(excluding VAT)"]
[null,null,"Carried over from Series 4: Water reticulation and water mains:"]
[]
[null,null,".16     Mild Steel 11¼º Bends for PVC pipes "]
[null,null,"(epoxy powder coated - refer to Series 401.05):"]
[null,null,"  with VJ flanged adaptors dedicated long barrel"]
[null,null,"         .01     100 mm dia","No",2]
[null,null,"         .02     150 mm dia","No",2]
[null,null,"         .03     200 mm dia","No",2]
[null,null,"         .04     250 mm dia","No",2]
[null,null,"         .05     300 mm dia","No",2]
[null,null,"         .06     350 mm dia","No",2]
[null,null,"         .07     400 mm dia","No",2]
[null,null,"         .08     500 mm dia","No",2]
[null,null,"         .09     600 mm dia","No",2]
[null,null,"         .10     700 mm dia","No",2]
[null,null,"         .11     800 mm dia","No",2]
[]
[null,null,".17     GMS pipes - 90º Bends, wrapped with"]
[null,null,"grease tape and then covered with PVC tape:"]
[null,null,"         .01     80 mm dia","No",10]
[null,null,"         .02     100 mm dia","No",10]
[null,null,"         .03     150 mm dia","No",10]
[null,null,"         .04     200 mm dia","No",10]
[]
[null,null,".18  Mild Steel 90º flanged long radius Bends drilled "]
[null,null,"in accordance with SABS 1123 Table 16"]
[null,null,"(epoxy powder coated - refer to Series 401.05):"]
[null,null,"         .01     100 mm dia","No",5]
[null,null,"         .02     115 mm dia","No",5]
[null,null,"         .03     200 mm dia","No",5]
[null,null,"         .04     250 mm dia","No",5]
[null,null,"         .05     300 mm dia","No",5]
[null,null,"         .06     350 mm dia","No",5]
[null,null,"         .07     400 mm dia","No",5]
[null,null,"         .08     500 mm dia","No",5]
[null,null,"         .09     600 mm dia","No",5]
[null,null,"         .10     700 mm dia","No",5]
[null,null,"         .11     800 mm dia","No",5]
[]
[null,null,".19     Mild Steel 45º flanged long radius Bends drilled in accordance with SABS 1123 Table 16"]
[null,null,"(epoxy powder coated - refer to Series 401.05):"]
[null,null,"         .01     100 mm dia","No",5]
[null,null,"         .02     115 mm dia","No",5]
[null,null,"         .03     200 mm dia","No",5]
[null,null,"         .04     250 mm dia","No",5]
[null,null,"         .05     300 mm dia","No",10]
[null,null,"         .06     350 mm dia","No",10]
[null,null,"         .07     400 mm dia","No",10]
[null,null,"         .08     500 mm dia","No",5]
[null,null,"         .09     600 mm dia","No",5]
[null,null,"         .10     700 mm dia","No",5]
[null,null,"         .11     800 mm dia","No",5]
[]
[null,null,".20     Mild Steel 22.5º flanged long radius Bends drilled in accordance with SABS 1123 Table 16"]
[null,null,"(epoxy powder coated - refer to Series 401.05):"]
[null,null,"         .01     100 mm dia","No",5]
[null,null,"         .02     115 mm dia","No",5]
[null,null,"         .03     200 mm dia","No",5]
[null,null,"         .04     250 mm dia","No",5]
[null,null,"         .05     300 mm dia","No",10]
[null,null,"         .06     350 mm dia","No",10]
[null,null,"         .07     400 mm dia","No",10]
[null,null,"         .08     500 mm dia","No",5]
[null,null,"         .09     600 mm dia","No",6]
[null,null,"         .10     700 mm dia","No",5]
[null,null,"         .11     800 mm dia","No",5]
[]
[]
[]
["TOTAL CARRIED TO NEXT PAGE"]
["Item","SC/Li","Description","Unit","Scheduled Quantity","Rate","Amount\n(excluding VAT)"]
[null,null,"Carried over from Series 4: Water reticulation and water mains:"]
[]
[null,null,".21     Mild Steel 11.25º flanged long radius Bends drilled in accordance with SABS 1123 Table 16 "]
[null,null,"(epoxy powder coated - refer to Series 401.05):"]
[null,null,"         .01     100 mm dia","No",5]
[null,null,"         .02     115 mm dia","No",5]
[null,null,"         .03     200 mm dia","No",5]
[null,null,"         .04     250 mm dia","No",5]
[null,null,"         .05     300 mm dia","No",10]
[null,null,"         .06     350 mm dia","No",10]
[null,null,"         .07     400 mm dia","No",10]
[null,null,"         .08     500 mm dia","No",5]
[null,null,"         .09     600 mm dia","No",5]
[null,null,"         .10     700 mm dia","No",5]
[null,null,"         .11     800 mm dia","No",5]
[]
[null,null,".22     Cast iron end caps for oPVC pipes:"]
[null,null,"           .01     110 mm dia","No",15]
[null,null,"           .02     160 mm dia","No",15]
[null,null,"           .03     200 mm dia","No",5]
[null,null,"           .04     250 mm dia","No",5]
[]
[null,null,".23     Flanged steel end caps (including corrosion"]
[null,null," protection as specified)  drilled in accordance with SABS 1123 Table 16 "]
[null,null,"(epoxy powder coated - refer to Series 401.05):"]
[null,null,"         .01     110 mm dia","No",5]
[null,null,"         .02     160 mm dia","No",5]
[null,null,"         .03      200 mm dia","No",5]
[null,null,"         .04      250 mm dia","No",5]
[null,null,"         .05      315 mm dia","No",5]
[null,null,"         .06      355 mm dia","No",5]
[null,null,"         .07      400 mm dia","No",2]
[null,null,"         .08      500 mm dia","No",2]
[null,null,"         .09      630 mm dia","No",2]
[null,null,"         .10      710 mm dia","No",2]
[null,null,"         .11      800 mm dia","No",2]
[]
[null,null,".24     Flanged steel end caps (including corrosion"]
[null,null," protection as specified)  drilled in accordance with SABS 1123 Table 25 "]
[null,null,"(epoxy powder coated - refer to Series 401.05):"]
[null,null,"         .01     110 mm dia","No",5]
[null,null,"         .02     160 mm dia","No",5]
[null,null,"         .03      200 mm dia","No",6]
[null,null,"         .04      250 mm dia","No",5]
[null,null,"         .05      315 mm dia","No",5]
[null,null,"         .06      355 mm dia","No",6]
[null,null,"         .07      400 mm dia","No",5]
[null,null,"         .08      500 mm dia","No",5]
[null,null,"         .09      630 mm dia","No",5]
[null,null,"         .10      710 mm dia","No",5]
[null,null,"         .11      800 mm dia","No",1]
[]
[null,null,".25     Cast iron or steel flanged reducers:"]
[null,null,"(epoxy powder coated - refer to Series 401.05):"]
[null,null,"         .01     160 x 110 mm","No",40]
[null,null,"         .02     200 x 110 mm","No",20]
[null,null,"         .03     200 x 160 mm","No",10]
[null,null,"         .04     250 x 110 mm","No",10]
[null,null,"         .05     250 x 160 mm","No",10]
[null,null,"         .06     250 x 200 mm","No",10]
[null,null,"         .07     315 x 200 mm","No",10]
[null,null,"         .08     315 x 250 mm ","No",5]
[null,null,"         .09     355 x 315 mm ","No",5]
[null,null,"         .10     400 x 355 mm ","No",2]
[null,null,"         .11     500 x 400 mm ","No",2]
[null,null,"         .12     630 x 400 mm ","No",2]
[null,null,"         .13     630 x 500 mm ","No",2]
[]
["TOTAL CARRIED TO NEXT PAGE"]
["Item","SC/Li","Description","Unit","Scheduled Quantity","Rate","Amount\n(excluding VAT)"]
[null,null,"Carried over from Series 4: Water reticulation and water mains:"]
[]
[null,null,".26     Cast iron flange adaptor for oPVC pipes,"]
[null,null,"drilled in accordance with SABS 1123 Table 16:"]
[null,null,"         .01     100 mm dia","No",200]
[null,null,"         .02     150 mm dia","No",100]
[null,null,"         .03     200 mm dia","No",20]
[null,null,"         .04     250 mm dia","No",20]
[null,null,"         .05     300 mm dia","No",50]
[]
[null,null,".27     Steel or cast iron flange adaptor for oPVC "]
[null,null,"pipes, drilled in accordance with SABS 1123 Table 16:"]
[null,null,"(epoxy powder coated - refer to Series 401.05):"]
[null,null,"           .01     300 mm dia","No",40]
[null,null,"           .02     350 mm dia","No",10]
[null,null,"           .03     400 mm dia","No",10]
[null,null,"           .04     500 mm dia","No",10]
[null,null,"           .05     600 mm dia","No",10]
[null,null,"           .06     700 mm dia","No",10]
[null,null,"           .07     800 mm dia","No",10]
[]
[null,null,".28     Steel  flange adaptor for PVC-O"]
[null,null,"pipes, drilled in accordance with SABS 1123 Table 25:"]
[null,null,"(epoxy powder coated - refer to Series 401.05):"]
[null,null,"           .01     100 mm dia","No",5]
[null,null,"           .02     150 mm dia","No",30]
[null,null,"           .03     200 mm dia","No",10]
[null,null,"           .04     250 mm dia","No",10]
[null,null,"           .05     300 mm dia","No",10]
[null,null,"           .06     350 mm dia","No",3]
[null,null,"           .07     400 mm dia","No",1]
[null,null,"           .08     500 mm dia","No",1]
[null,null,"           .09     600 mm dia","No",8]
[null,null,"           .10     700 mm dia","No",1]
[null,null,"           .11     800 mm dia","No",40]
[]
[null,null,".29     Steel dismantling joints for PVC-O"]
[null,null,"pipes, drilled in accordance with SABS 1123 Table 25:"]
[null,null,"(epoxy powder coated - refer to Series 401.05):"]
[null,null,"           .01     100 mm dia","No",3]
[null,null,"           .02     150 mm dia","No",1]
[null,null,"           .03     200 mm dia","No",5]
[null,null,"           .04     250 mm dia","No",1]
[null,null,"           .05     300 mm dia","No",1]
[null,null,"           .06     350 mm dia","No",1]
[null,null,"           .07     400 mm dia","No",1]
[null,null,"           .08     450 mm dia","No",3]
[null,null,"           .09     500 mm dia","No",1]
[null,null,"           .10     600 mm dia","No",5]
[null,null,"           .11     700 mm dia","No",1]
[null,null,"           .12     800 mm dia","No",1]
[]
[null,null,".30     Cast Iron / Plastic saddles"]
[null,null,"           .01     110 x 40 mm ","No",1000]
[null,null,"           .02     160 x 40 mm ","No",500]
[null,null,"           .03     200 x 40 mm ","No",50]
[null,null,"           .04     250 x 40 mm ","No",50]
[]
[null,null,".31     Mild steel saddles"]
[null,null,"(epoxy powder coated - refer to Series 401.05):"]
[null,null,"           .01     315 x 40 mm ","No",5]
[null,null,"           .02     355 x 40 mm ","No",5]
[null,null,"           .03     400 x 40 mm ","No",5]
{"$rows_empty":7}
["TOTAL CARRIED TO NEXT PAGE"]
["Item","SC/Li","Description","Unit","Scheduled Quantity","Rate","Amount\n(excluding VAT)"]
[null,null,"Carried over from Series 4: Water reticulation and water mains:"]
[]
[null,null,".32     Cast iron reducing Tees for oPVC pipes:"]
[null,null,"         .01     160 x 110 mm","No",10]
[null,null,"         .02     200 x 110 mm","No",5]
[null,null,"         .03     200 x 160 mm","No",5]
[null,null,"         .04     250 x 110 mm","No",5]
[null,null,"         .05     250 x 160 mm","No",5]
[null,null,"         .06     250 x 200 mm","No",5]
[]
[]
[null,null,".33    Flanged Cast iron reducing Tees:"]
[null,null,"         .01     160 x 110 mm","No",30]
[null,null,"         .02     200 x 110 mm","No",20]
[null,null,"         .03     200 x 160 mm","No",10]
[null,null,"         .04     250 x 110 mm","No",10]
[null,null,"         .05     250 x 160 mm","No",10]
[null,null,"         .06     250 x 200 mm","No",10]
[]
[null,null,".34    Flanged steel reducing Tees, flange drilled to"]
[null,null," SABS 1123 Table 1600/3 (epoxy powder coated - refer to Series 401.05):"]
[null,null,"         .01     160 x 110 mm","No",50]
[null,null,"         .02     200 x 110 mm","No",30]
[null,null,"         .03     200 x 160 mm","No",25]
[null,null,"         .04     250 x 110 mm","No",25]
[null,null,"         .05     250 x 160 mm","No",25]
[null,null,"         .06     250 x 200 mm","No",10]
[null,null,"         .07     315 x 250mm","No",5]
[null,null,"         .08     315 x 200 mm","No",5]
[null,null,"         .09     355 x 315mm","No",5]
[null,null,"         .10     355 x 250 mm","No",5]
[null,null,"         .11     355 x 200 mm","No",5]
[null,null,"         .12     400 x 200mm","No",5]
[null,null,"         .13    400 x 315 mm","No",5]
[null,null,"         .14    400 x 355 mm","No",5]
[]
[null,null,".35    Flanged steel reducing Tees, flange drilled to"]
[null,null," SABS 1123 Table 2500/3 (epoxy powder coated - refer to Series 401.05) PN 25:"]
[null,null,"         .01     600 x 150 mm","No",2]
[null,null,"         .02     600 x 300 mm","No",1]
[null,null,"         .03     600 x 350 mm","No",1]
[null,null,"         .04     800 x 150 mm","No",1]
[null,null,"         .05     800 x 250 mm","No",3]
[null,null,"         .06     800 x 300 mm","No",1]
[]
[null,null,".36     Cast iron equal Tees for oPVC pipes:"]
[null,null,"           .01    110 mm dia","No",50]
[null,null,"           .02    160 mm dia","No",50]
[null,null,"           .03    200 mm dia","No",10]
[null,null,"           .04    250 mm dia","No",10]
[null,null,"           .05    315 mm dia","No",10]
[]
[null,null,".37     Flanged steel equal Tees drilled in "]
[null,null,"accordance with SABS 1123 Table 16 (epoxy powder coated - refer to Series 401.05):"]
[null,null,"           .01     110 mm dia","No",10]
[null,null,"           .02    160 mm dia","No",10]
[null,null,"           .03    200 mm dia","No",5]
[null,null,"           .04    250 mm dia","No",5]
[]
[]
[]
[]
[]
[]
["TOTAL CARRIED TO NEXT PAGE"]
["Item","SC/Li","Description","Unit","Scheduled Quantity","Rate","Amount\n(excluding VAT)"]
[null,null,"Carried over from Series 4: Water reticulation and water mains:"]
[]
[null,null,".38     Flanged steel equal Tees drilled in "]
[null,null,"accordance with SABS 1123 Table 25 (epoxy powder coated - refer to Series 401.05)PN 25:"]
[null,null,"         .01     300 x 300 mm","No",1]
[null,null,"         .02     350 x 350 mm","No",1]
[null,null,"         .03     400 x 400 mm","No",1]
[null,null,"         .04     500 x 500 mm","No",1]
[null,null,"         .05     600 x 600 mm","No",2]
[null,null,"         .06     800 x 800 mm","No",4]
[]
[null,null,"39.   Flanged  Equal Tee, Plain ended Two Ends and Flanged One End"]
[null,null,"         .01     200 x 200 mm","No",1]
[]
[null,null,".40   Unequal Tee, Plain ended Two Ends and Flanged One End"]
[null,null,"         .01     600 x 200 mm","No",2]
[]
[null,null,".41     Cast iron hydrant Tees:"]
[null,null,"           .01     110 mm dia","No",80]
[null,null,"           .02    160 mm dia","No",80]
[null,null,"           .03    200 mm dia","No",20]
[null,null,"           .04    250 mm dia","No",20]
[]
[null,null,".42     Steel flange hydrant Tees drilled in "]
[null,null,"accordance with SABS 1123 Table 16(epoxy powder coated - refer to Series 401.05):"]
[null,null,"           .01    110mm dia","No",25]
[null,null,"           .02    160 mm dia","No",25]
[null,null,"           .03    200 mm dia","No",10]
[null,null,"           .04    250 mm dia","No",10]
[null,null,"           .05    315 mm dia","No",5]
[null,null,"           .06    355 mm dia","No",5]
[null,null,"           .07    400 mm dia","No",5]
[null,null,"           .08    500 mm dia","No",5]
[null,null,"           .09    630 mm dia","No ",5]
[null,null,"           .10    800 mm dia","No ",5]
[]
[null,null,".43     Cast iron scour Tees:"]
[null,null,"           .01    110 mm dia","No",10]
[null,null,"           .02    160 mm dia","No",5]
[null,null,"           .03    200 mm dia","No",5]
[null,null,"           .04    250 mm dia","No",5]
[]
[null,null,".44     Flanged Reducer drilled in:"]
[null,null,"accordance with SABS 1123 Table 25 (epoxy powder coated - refer to Series 401.05) PN 25:"]
[null,null,"         .01     150 x 100 mm","No",6]
[null,null,"         .02     250 x 200 mm","No",6]
[null,null,"         .03     300 x 200 mm","No",2]
[null,null,"         .04     300 x 200 mm","No",2]
[null,null,"         .05     600 x 150 mm","No",1]
[null,null,"         .06     600 x 450 mm","No",6]
[null,null,"         .07     800 x 250 mm","No",1]
[null,null,"         .08     800 x 600 mm","No",5]
[]
[null,null,".45     Blank Flanged drilled in:"]
[null,null,"accordance with SABS 1123 Table 25 (epoxy powder coated - refer to Series 401.05) PN 25:"]
[null,null,"           .01    800 mm dia","No",1]
[]
[]
[]
[]
[]
[]
["TOTAL CARRIED TO NEXT PAGE"]
["Item","SC/Li","Description","Unit","Scheduled Quantity","Rate","Amount\n(excluding VAT)"]
[null,null,"Carried over from Series 4: Water reticulation and water mains:"]
[]
[null,null,".46     Galvinised screwed flanges drilled in "]
[null,null,"accordance with SABS 1123 Table 16 "]
[null,null,"         .01     80 mm dia","No",20]
[null,null,"         .02     100 mm dia","No",40]
[null,null,"         .03     150 mm dia","No",40]
[null,null,"         .04     200 mm dia","No",20]
[]
[null,null,".47    GMS Nippels"]
[null,null,"         .01     80mm","No",20]
[null,null,"         .02     100mm","No",40]
[null,null,"         .03     150mm","No",40]
[null,null,"         .04     200mm","No",20]
[]
[null,null,".48     GMS Equal Tee's"]
[null,null,"         .01     80mm","No",10]
[null,null,"         .02    100mm","No",10]
[null,null,"         .03    150mm","No",10]
[]
[null,null,".49     GMS Reducing Tees"]
[null,null,"         .01     160mm - 100mm","No",10]
[null,null,"         .02     100mm - 80mm","No",10]
[]
[null,null,".50     Adopter Couplings (Range couplings)"]
[null,null,"         .01     108 - 118mm","No",5]
[null,null,"         .02     109 - 128mm","No",10]
[null,null,"         .03     159 - 170mm","No",10]
[null,null,"         .04     159 - 182mm","No",10]
[null,null,"         .05    190 - 205mm","No",10]
[null,null,"         .06     239- 250mm","No",5]
[null,null,"         .07    250 - 267mm","No",5]
[null,null,"         .08    315 - 328mm","No",10]
[null,null,"         .09    350 - 360mm","No",5]
[null,null,"         .10    396 - 406mm","No",5]
[null,null,"         .11    500 - 510mm","No",5]
[null,null,"         .12    628 - 650mm","No",5]
[null,null,"         .13    700 - 710mm","No",1]
[null,null,"         .14    800 - 810mm","No",1]
[]
[null,null,".51     GMS Sockets"]
[null,null,"         .01     80mm","No",20]
[null,null,"         .02     100mm","No",40]
[null,null,"         .03     150mm","No",40]
[]
[null,null,".52     GMS Weld-on Flanges - Class 16"]
[null,null,"         .01     100mm","No",40]
[null,null,"         .02     150mm","No",40]
[null,null,"         .03     200mm","No",20]
[null,null,"         .04     250mm","No",20]
[null,null,"         .05     315mm","No",10]
[null,null,"         .06     355mm","No",10]
[null,null,"         .07     410mm","No",10]
[]
[null,null,".53     Flexible flange adaptor with extended barrel"]
[null,null," length  (epoxy powder coated - refer to Series 401.05):"]
[null,null,"         .01     109 - 128mm","No",5]
[null,null,"         .02     159 - 182mm","No",5]
[null,null,"         .03     190 - 205mm","No",5]
[null,null,"         .04     239 - 250mm","No",5]
[null,null,"         .05     315 - 328mm","No",5]
{"$rows_empty":9}
["TOTAL CARRIED TO NEXT PAGE"]
["Item","SC/Li","Description","Unit","Scheduled Quantity","Rate","Amount\n(excluding VAT)"]
[null,null,"Carried over from Series 4: Water reticulation and water mains:"]
[]
[402.02,null,".54     Long barrel Adaptor Couplings (Range "]
[null,null,"coupling, epoxy powder coated - refer to Series 401.05):"]
[null,null,"         .01     88 - 103mm","No",5]
[null,null,"         .02     109 - 128mm","No",10]
[null,null,"         .03     159 - 182mm","No",10]
[null,null,"         .04     192 - 210mm","No",10]
[null,null,"         .05     250 - 267mm","No",5]
[null,null,"         .06     315 - 332mm","No",5]
[]
[null,null,".55     Stainless steel clamp with a tapping outlet "]
[null,null,"to be used as a  saddles"]
[null,null,"           .01     110 x 40 mm","No",30]
[null,null,"           .02     160 x 40 mm","No",30]
[null,null,"           .03     200 x 40 mm","No",10]
[null,null,"           .04     250 x 40 mm","No",10]
[null,null,"           .05     315 x 40 mm ","No",10]
[null,null,"           .06    355 x 40 mm","No",10]
[]
[null,null,".56     Double flanged, anti clockwise closing "]
[null,null,"\"RSV\"(Class 16) capped top valves drilled in "]
[null,null,"accordance with SABS 1123 Table 16:"]
[null,null,"         .01     80 mm","No",20]
[null,null,"         .02     100 mm","No",60]
[null,null,"         .03     150 mm","No",60]
[null,null,"         .04     200 mm","No",20]
[null,null,"         .05     250 mm","No",20]
[null,null,"         .06     300 mm","No",20]
[null,null,"         .07     350 mm","No",5]
[null,null,"         .08     400 mm","No",5]
[null,null,"         .09     500 mm","No",5]
[]
[null,null,".57     Double flanged, anti clockwise closing "]
[null,null,"\"RSV\"(Class 25) capped top valves drilled in "]
[null,null,"accordance with SABS 1123 Table 25:"]
[null,null,"         .01     100 mm","No",13]
[null,null,"         .02     150 mm","No",10]
[null,null,"         .03     200 mm","No",10]
[null,null,"         .04     250 mm","No",7]
[null,null,"         .05     300 mm","No",5]
[null,null,"         .06     350 mm","No",1]
[null,null,"         .07     400 mm","No",5]
[null,null,"         .08     450 mm","No",8]
[]
[null,null,".58     Isolating valves, butterfly valve, ductile iron body & disc (epoxy powder coated), double flanged and drilled to SANS 1123 (Class 25). AUMA type gear box fitted, handwheel operated."]
[null,null,"         .01     600 mm","No",4]
[null,null,"         .02     800 mm","No",4]
[]
[null,null,".59     Restrained Quick flange adaptor for HDPE pipe "]
[null,null,"Epoxy coated complete with gripper ring:"]
[null,null,"         .01     110 mm","No",5]
[null,null,"         .02     160 mm","No",5]
[null,null,"         .03     200 mm","No",5]
[null,null,"         .04     250 mm","No",5]
[null,null,"         .05     315 mm","No",5]
[]
[null,null,".60     Restrained Quick flange adaptor for PVC pipe "]
[null,null,"Epoxy coated:"]
[null,null,"         .01     110 mm","No",20]
[null,null,"         .02     160 mm","No",20]
[null,null,"         .03     200 mm","No",10]
[null,null,"         .04     250 mm","No",10]
[null,null,"         .05     315 mm","No",10]
[]
[]
[]
["TOTAL CARRIED TO NEXT PAGE"]
["Item","SC/Li","Description","Unit","Scheduled Quantity","Rate","Amount\n(excluding VAT)"]
[null,null,"Carried over from Series 4: Water reticulation and water mains:"]
[]
[null,null,"16 bar flanged"]
[null,null,"         .01     25 mm","No",2]
[null,null,"         .02     50 mm","No",2]
[null,null,"         .03     80 mm","No",2]
[]
[" B402.02",null,".62     Custom made Steel special to be measured, "]
[null,null," manufactured and installed "]
[null,null,"(epoxy powder coated - refer to Series 401.05):","each","Per approved quotation "]
[]
[null,null,".63    Electrofusion Coupler PE100 SDR11 (ISO S5) Installed in accordance with SABS 10268"]
[null,null,"         .01     110 mm dia","No",1]
[null,null,"         .02     160 mm dia","No",1]
[null,null,"         .03     200 mm dia","No",1]
[null,null,"         .04     250 mm dia ","No",1]
[null,null,"         .05     315 mm dia ","No",1]
[null,null,"         .06     355 mm dia","No",1]
[null,null,"         .07     400 mm dia","No",1]
[null,null,"         .08     500 mm dia ","No",1]
[null,null,"         .09     630 mm dia ","No",1]
[]
[null,null,".64    Electrofusion Elbow 90º PE100 SDR11 (ISO S5) Installed in accordance with SABS 10268"]
[null,null,"         .01     110 mm dia","No",1]
[null,null,"         .02     160 mm dia","No",1]
[null,null,"         .03     200 mm dia","No",1]
[null,null,"         .04     250 mm dia","No",1]
[]
[null,null,".65    Electrofusion Elbow 45º PE100 SDR11 (ISO S5) Installed in accordance with SABS 10268"]
[null,null,"         .01     110 mm dia","No",1]
[null,null,"         .02     160 mm dia","No",1]
[null,null,"         .03     200 mm dia","No",1]
[null,null,"         .04     250 mm dia","No",1]
[]
[null,null,".66    Electrofusion Equal Tee PE100 SDR11 (ISO S5) Installed in accordance with SABS 10268"]
[null,null,"         .01     110 mm dia","No",1]
[null,null,"         .02     160 mm dia","No",1]
[null,null,"         .03     200 mm dia","No",1]
[null,null,"         .04     250 mm dia","No",1]
[]
[null,null,".67   Electrofusion Reduced Tee PE100 SDR11 (ISO S5) Installed in accordance with SABS 10268"]
[null,null,"      .01    160 X 110mm dia","No",1]
[null,null,"      .02    200 X 110mm dia","No",1]
[null,null,"      .03    200 X 160mm dia","No",1]
[null,null,"      .04    250 X 110mm dia","No",1]
[null,null,"      .05    110 X 90mm dia","No",1]
[null,null,"      .06    160 X 90mm dia","No",1]
[null,null,"      .07    200 X 90mm dia","No",1]
[null,null,"      .08    250 X 160mm dia","No",1]
[null,null,"      .08    250 X 160mm dia","No",1]
{"$rows_empty":14}
["TOTAL CARRIED TO NEXT PAGE"]
["Item","SC/Li","Description","Unit","Scheduled Quantity","Rate","Amount\n(excluding VAT)"]
[null,null,"Carried over from Series 4: Water reticulation and water mains:",{"$nulls":3},{"$f":"G1536","v":{"v":0,"d":"R0.00"}}]
[]
[null,null,".68   Elbow 90º Spigot fittings, seamless, per moulded bend for butt fusion (long ends) PE100 SDR11 (ISO S5) Installed in accordance with ISO21307 – 2011"]
[null,null,"         .01     110 mm dia","No",1]
[null,null,"         .02     160 mm dia","No",1]
[null,null,"         .03     200 mm dia","No",1]
[null,null,"         .04     250 mm dia ","No",1]
[null,null,"         .05     315 mm dia ","No",1]
[null,null,"         .06     355 mm dia","No",1]
[null,null,"         .07     400 mm dia","No",1]
[null,null,"         .08     500 mm dia ","No",1]
[null,null,"         .09     630 mm dia ","No",1]
[]
[null,null,".69   Elbow 45º Spigot fittings, seamless, per moulded bend for butt fusion (long ends) PE100 SDR11 (ISO S5) Installed in accordance with ISO21307 – 2011"]
[null,null,"         .01     110 mm dia","No",1]
[null,null,"         .02     160 mm dia","No",1]
[null,null,"         .03     200 mm dia","No",1]
[null,null,"         .04     250 mm dia ","No",1]
[null,null,"         .05     315 mm dia ","No",1]
[null,null,"         .06     355 mm dia","No",1]
[null,null,"         .07     400 mm dia","No",1]
[null,null,"         .08     500 mm dia ","No",1]
[null,null,"         .09     630 mm dia ","No",1]
[]
[null,null,".70   Elbow 30º Spigot fittings, seamless, per moulded bend for butt fusion (long ends) PE100 SDR11 (ISO S5) Installed in accordance with ISO21307 – 2011"]
[null,null,"         .01     110 mm dia","No",1]
[null,null,"         .02     160 mm dia","No",1]
[null,null,"         .03     200 mm dia","No",1]
[null,null,"         .04     250 mm dia ","No",1]
[null,null,"         .05     315 mm dia ","No",1]
[null,null,"         .06     355 mm dia","No",1]
[null,null,"         .07     400 mm dia","No",1]
[null,null,"         .08     500 mm dia ","No",1]
[null,null,"         .09     630 mm dia ","No",1]
[]
[null,null,".71   Elbow between 11 and 15º Spigot fittings, seamless, per moulded bend for butt fusion (long ends) Installed in accordance with ISO21307 – 2011"]
[null,null,"         .01     110 mm dia","No",1]
[null,null,"         .02     160 mm dia","No",1]
[null,null,"         .03     200 mm dia","No",1]
[null,null,"         .04     250 mm dia ","No",1]
[null,null,"         .05     315 mm dia ","No",1]
[null,null,"         .06     355 mm dia","No",1]
[null,null,"         .07     400 mm dia","No",1]
[null,null,"         .08     500 mm dia ","No",1]
[null,null,"         .09     630 mm dia ","No",1]
[]
[null,null,".72   Equal Tee Spigot fittings, per moulded and reinforced for butt fusion (long spigot) Installed in accordance with ISO21307 – 2011"]
[null,null,"         .01     110 mm dia","No",1]
[null,null,"         .02     160 mm dia","No",1]
[null,null,"         .03     200 mm dia","No",1]
[null,null,"         .04     250 mm dia ","No",1]
[]
[]
[]
[]
[]
[]
["TOTAL CARRIED TO NEXT PAGE"]
["Item","SC/Li","Description","Unit","Scheduled Quantity","Rate","Amount\n(excluding VAT)"]
[null,null,"Carried over from Series 4: Water reticulation and water mains:"]
[]
[null,null,"      .01    160 X 110mm dia","No",1]
[null,null,"      .02    200 X 110mm dia","No",1]
[null,null,"      .03    200 X 160mm dia","No",1]
[null,null,"      .04    250 X 110mm dia","No",1]
[null,null,"      .05    110 X 90mm dia","No",1]
[null,null,"      .06    160 X 90mm dia","No",1]
[null,null,"      .07    200 X 90mm dia","No",1]
[null,null,"      .08    250 X 160mm dia","No",1]
[null,null,"      .09    315 X 110mm dia","No",1]
[null,null,"      .10    315 X 160mm dia","No",1]
[null,null,"      .11    315 X 250mm dia","No",1]
[]
[null,null,".74   Electrofusion tapping saddle kit including coupler in outlet, PE100 SDR11 (ISO S5) Installed in accordance with SABS 10268"]
[null,null,"      .01    110 x 40mm dia outlet","No",1]
[null,null,"      .02    160 x 40mm dia outlet","No",1]
[null,null,"      .03    200 x 40mm dia outlet","No",1]
[]
[null,null,".75   Electrofusion branch fitting, PE100 SDR11 (ISO S5) Installed in accordance with SABS 10268"]
[null,null,"      .01    200 x 110mm dia outlet","No",1]
[null,null,"      .02    160 x 110mm dia outlet","No",1]
[null,null,"      .03    200 x 160mm dia outlet","No",1]
[null,null,"      .04    250 x 110mm dia outlet","No",1]
[null,null,"      .05    250 x 160mm dia outlet","No",1]
[]
[null,null,".76   Flange adaptor, PE100 SDR11 (ISO S5), including gasket and flange (table 16).  Installed in accordance with SABS 10268"]
[null,null,"         .01     110 mm dia","No",1]
[null,null,"         .02     160 mm dia","No",1]
[null,null,"         .03     200 mm dia","No",1]
[null,null,"         .04     250 mm dia ","No",1]
[null,null,"         .05     315 mm dia ","No",1]
[null,null,"         .06     355 mm dia","No",1]
[null,null,"         .07     400 mm dia","No",1]
[null,null,"         .08     500 mm dia ","No",1]
[null,null,"         .09     630 mm dia ","No",1]
[null,null,"         .10     710 mm dia ","No",1]
[null,null,"         .11     800 mm dia ","No",1]
[]
[null,null,".77    Blank Flange with hole and welded branch for fitting of air valve (steel), flange drilled to"]
[null,null,"accordance with SABS 1123 Table 25 (epoxy powder coated - refer to Series 401.05):"]
[null,null,".01   600mm NB x 150mm NB flanged branch, 6mm wall ","No",1]
[null,null,".02   800mm NB x 150mm NB flanged branch, 6mm wall ","No",4]
[]
[null,null,".78      Air Release and Vacuum Break Valve, Fig RBX 2501BP, complete with ¼” bleed port fitted with ¼” Chrome plated brass ball valve and a ¼” brass hex nipple, 2500kPa rated. Mild steel fusion bonded epoxy coated ends (Vent-o-mat or approved equal)"]
[null,null,"         .01     150 mm dia","No",4]
[]
[null,null,".79    Y-strainer, Ductile iron GGG40 Body and cover, stainless steel strainer on a ductile iron removable frame, 2mm mesh diameter, 32mm diameter flushing port ball valve, fusion bonded epoxy coated, Flanged and drilled to SANS 1123  "]
[null,null,"         .01     100 mm dia","No",3]
[null,null,"         .02     150 mm dia","No",1]
[null,null,"         .02     200 mm dia","No",4]
[null,null,"         .03     250 mm dia","No",1]
[]
[]
[]
[]
[]
["TOTAL CARRIED TO NEXT PAGE"]
["Item","SC/Li","Description","Unit","Scheduled Quantity","Rate","Amount\n(excluding VAT)"]
[null,null,"Carried over from Series 4: Water reticulation and water mains:"]
[]
[402.02,null,".80    Combination Pressure Reducing & Flow Control Valve PN 25: \"ClaVal\" Fig. 210G-21 ABECE X101  Combination Pressure Reducing and Rate of Flow Control Valve complete with orifice plate, or similar approved with additional strainer and check valve functions,  S.G. iron body, Buna N diaphragm, Stainless steel Internals. Double flanged and drilled to SABS 1123/25. Manufacturer’s standard epoxy coating "]
[null,null,"         .01     100 mm dia","No",3]
[null,null,"         .02     200 mm dia","No",4]
[null,null,"         .03     250 mm dia","No",1]
[]
[null,null,".81    BULK WATER METER PN25: \"Sensus\" Series 'WPD' Turbine Water Meter, 25 Bar rated, Cast iron body. Double flanged. Manufacturer's standard epoxy coating. 40º C. Including connection port for Radio Transmitter Unit (Cellular Phone System) and future addition of a sensor/pulser but excluding sensor, pulser and any other accessories not mentioned above. "]
[null,null,"         .01     100 mm dia","No",3]
[null,null,"         .02     200 mm dia","No",4]
[null,null,"         .03     250 mm dia","No",1]
[]
[null,null,".82   DN150 Viking Johnson anchored flaged adapter"]
[null,null,"         .01     150 mm dia","No",2]
[]
[null,null,".83   DN150 Linkflex, flexible rubber joint"]
[null,null,"         .01     150 mm dia","No",2]
[]
[null,null,".84   DN150 Resiliant seal AVK swing check valve"]
[null,null,"         .01     150 mm dia","No",2]
[]
[null,null,".85   1 x DN25 Redusing bush, 1 x DN15 Equal Tee, female, 5 x DN15 Nipples, 1 x DN Full flow ball valve (female), 2 x DN15 Elbows (female), 1 x Glisarine pressure gauge, 1 x pressure switch"]
[null,null,"         .01     25 mm dia Redusing bush with fittings","No",1]
[]
[null,null,".86   DN25 No-flow switch (Electrical)"]
[null,null,"         .01     25 mm dia flow switch ","No",1]
[]
[null,null,".87   DN50-25mm Reduser, DN25 Barrel nipple, full flow ball valve and double orifice, dual action ventomat air valve"]
[null,null,"         .01     50 mm dia Full flow ball valve and air valve","No",1]
[]
[null,null,".88   Grundfos CR125-1 A-F-A-E-HQQE 400D/690Y 50 HZ Pump and Motor"]
[null,null,"         .01     150 mm dia Grundfod pump","No",2]
[]
[null,null,".89   Grundfos CUE 3x380-500V IP20 45KW 90A/8"]
[null,null,"         .01     Grundfod pump control unit","No",1]
[]
[402.03,null,"Encasement of pipes with"]
[null,null,".01     Class 15/19 concrete","m³",5]
[null,null,".02     Soilcrete","m³",10]
[]
["402.04",null,"Providing thrust blocks using class 15/19 concrete","m³",200]
[null,null," As per drawing 7515-W108 "]
{"$rows_empty":7}
["TOTAL CARRIED TO NEXT PAGE"]
["Item","SC/Li","Description","Unit","Scheduled Quantity","Rate","Amount\n(excluding VAT)"]
[null,null,"Carried over from Series 4: Water reticulation and water mains:"]
[]
["402.05",null,"Supplying and placing unscreened selected backfill "]
[null,null,"material under, alongside and up to 200 mm above "]
[null,null,"pipe barrel using:"]
[null,"Li",".01      Excavated material (L1)","m³",{"v":8000,"d":"8,000"}]
[null,"Li",".02     Imported material from sources provided "]
[null,null,"           by the Employer (L1)","m³",{"v":1000,"d":"1,000"}]
[null,"Li",".03     Imported material from sources provided "]
[null,null,"           by the Contractor (L1)","m³",{"v":6000,"d":"6,000"}]
[]
["402.06","Li","Extra over item 402.05 for screening excavated "]
[null,null,"material for selected backfill (L1)","m³",{"v":8000,"d":"8,000"}]
[]
["402.07",null,"Valve chambers complete (including valves and all fittings, labour and excavation and backfilling):"]
[]
[null,"SC",".01 Supply and installation of Cast Iron / PVC Valve "]
[null,null," box complete for \"RSV\" valves as shown "]
[null,null,"drawing  7515-W103 (type A) Complete with all fittings, valve and backfilling/excavation)","No",100]
[]
[null,"SC",".02 Supply and installation of  Precast concrete"]
[null,null," valve box according to drawing 7515-W103 (type B) Complete with all fittings","No",250]
[]
[null,"SC",".03 Supply and installation new air  valve chamber"]
[null,null,"according to drawing 7515-W107 (Complete Air valve chamber with all fittings and 1500ø concrete ring) Rate shall include excavation, backfilling and labour.","No",5]
[]
[null,null,".04 Construction of a reinforced concrete valve "]
[null,null,"chamber, with dimensions of 4.0m x 8.0m x 2.4m"]
[null,null," deep according to drawing 7515-VC106A and"]
[null,null,"(including all material, labour and excavations complete)","No",4]
[]
[null,null,".05 Construction of a reinforced concrete valve "]
[null,null,"chamber, with dimensions of 6.0m x 6.0m x 3.5m "]
[null,null,"deep according to drawing 7515-VC107A and "]
[null,null,"7515-VC107B (including all material, fittings, valves, labour and excavations complete)","No",4]
[]
[null,null,".06 Construction of a reinforced concrete valve"]
[null,null," chamber, with dimensions of 3.0m x 6.5m x 2.4m"]
[null,null,"deep according to drawing 7515-VC113A and deep "]
[null,null,"deep (including all material, valves and fittings, labour and excavations/backfilling complete)","No",1]
[]
[null,null,".09 Construction of a reinforced concrete valve "]
[null,null,"chamber with dimensions of 6 x 12 x 3.5m deep "]
[null,null,"according to drawing 7515-VC104A and "]
[null,null,"7515-VC104B(including all material, valves, fittings, labour and excavations complete)","No",1]
[]
["402.08","Li","Installation of maker blocks ","No",50]
[]
["402.09",null,"Installation of hydrants complete "]
[null,null,"as per drawing 7515-W106 (Complete with all fittings)","No",300]
{"$rows_empty":11}
["TOTAL CARRIED TO NEXT PAGE"]
["Item","SC/Li","Description","Unit","Scheduled Quantity","Rate","Amount\n(excluding VAT)"]
[null,null,"Carried over from Series 4: Water reticulation and water mains:"]
[]
["402.10",null,"Sterilizing of pipelines"]
[]
[null,null,"         .01     110 mm dia","m",{"v":12050,"d":"12,050"},{"$nulls":3},12050]
[null,null,"         .02     160 mm dia","m",{"v":12050,"d":"12,050"},{"$nulls":3},12050]
[null,null,"         .03     200 mm dia","m",{"v":5050,"d":"5,050"},{"$nulls":3},4050]
[null,null,"         .04     250 mm dia","m",{"v":6050,"d":"6,050"},{"$nulls":3},4050]
[null,null,"         .05     315 mm dia","m",{"v":3550,"d":"3,550"},{"$nulls":3},3050]
[null,null,"         .06     355 mm dia","m",{"v":1000,"d":"1,000"},{"$nulls":3},1000]
[null,null,"         .07     400 mm dia","m",{"v":1550,"d":"1,550"},{"$nulls":3},2050]
[null,null,"         .08     500 mm dia","m",500,{"$nulls":3},500]
[null,null,"         .09     630 mm dia","m",500,{"$nulls":3},500]
[null,null,"         .10     710 mm dia","m",500]
[null,null,"         .11     800 mm dia","m",{"v":2630,"d":"2,630"}]
[{"$nulls":8},550]
["B402.23",null,"Supply and installation of PRV and all fittings in "]
[null,null,"PRV chamber complete as per drawing:"]
[]
[null,null,".01 Supply and installation fittings, pipe work and "]
[null,null,"footings for a pressure reducing valve chamber at "]
[null,null,"Soshanguve GG according to drawing "]
[null,null,"W-0131-SOSH-GG-10-0005-R00-C (including all material and labour)","No",1]
[{"$nulls":8},{"v":12050,"d":"12,050"},"      .02     160 mm dia"]
["B402.12","Li","The provision and installation of connections to ",{"$nulls":5},{"v":3550,"d":"3,550"},"      .03      200 mm dia"]
[null,null,"users complete (excluding  supply of water meters ",{"$nulls":5},{"v":1550,"d":"1,550"},"      .04      250 mm dia"]
[null,null,"but including installation of water meters) as per ",{"$nulls":5},{"v":1550,"d":"1,550"},"      .05     315 mm dia"]
[null,null,"detail drawing 7515-W206 and 7515-W207 :",{"$nulls":5},{"v":1000,"d":"1,000"},"      .06     355 mm dia"]
[null,null,".01 Short single erf connection",{"$nulls":5},{"v":1550,"d":"1,550"},"      .07     400 mm dia"]
[null,null,"  .01     15 mm dia watermeter, 40 mm pipe size","No",300,{"$nulls":3},500,"      .08     450 mm dia"]
[null,null,"  .02     20 mm dia watermeter, 40 mm pipe size","No",50,{"$nulls":3},500,"      .09     500 mm dia"]
[null,null,"  .03     25 mm dia watermeter, 40 mm pipe size","No",20,{"$nulls":3},550]
[null,null,"  .04     40 mm dia watermeter, 50 mm pipe size","No",20,{"$nulls":3},1550,"      .09     630 mm dia"]
[null,null,"  .05     50 mm dia watermeter, 80 mm pipe size","No",10]
[null,null,"  .06     80 mm dia watermeter, 100 mm pipe size","No",10]
[null,null,"  .07     100 mm dia watermeter, 150 mm pipe size","No",5]
[]
[null,null,".02 Short double erf connections"]
[null,null,"  .01     15 mm dia watermeter, 40 mm pipe size","No",100]
[null,null,"  .02     20 mm dia watermeter, 40 mm pipe size","No",20]
[null,null,"  .03     25 mm dia watermeter, 40 mm pipe size","No",10]
[null,null,"  .04     40 mm dia watermeter, 50 mm pipe size","No",10]
[null,null,"  .05     50 mm dia watermeter, 80 mm pipe size","No",10]
[null,null,"  .06     80 mm dia watermeter, 100 mm pipe size","No",5]
[null,null,"  .07     100 mm dia watermeter, 150 mm pipe size","No",5]
[]
[null,null,".03 Long single erf connection"]
[null,null,"  .01     15 mm dia watermeter, 40 mm pipe size","No",300]
[null,null,"  .02     20 mm dia watermeter, 40 mm pipe size","No",50]
[null,null,"  .03     25 mm dia watermeter, 40 mm pipe size","No",20]
[null,null,"  .04     40 mm dia watermeter, 50 mm pipe size","No",20]
[null,null,"  .05     50 mm dia watermeter, 80 mm pipe size","No",10]
[null,null,"  .06     80 mm dia watermeter, 100 mm pipe size","No",10]
[null,null,"  .07     100 mm dia watermeter, 150 mm pipe size","No",5]
[]
[null,null,".04 Long double erf connections"]
[null,null,"  .01     15 mm dia watermeter, 40 mm pipe size","No",100]
[null,null,"  .02     20 mm dia watermeter, 40 mm pipe size","No",20]
[null,null,"  .03     25 mm dia watermeter, 40 mm pipe size","No",10]
[null,null,"  .04     40 mm dia watermeter, 50 mm pipe size","No",10]
[null,null,"  .05     50 mm dia watermeter, 80 mm pipe size","No",10]
[null,null,"  .06     80 mm dia watermeter, 100 mm pipe size","No",5]
[null,null,"  .07     100 mm dia watermeter, 150 mm pipe size","No",5]
{"$rows_empty":7}
["TOTAL CARRIED TO NEXT PAGE"]
["Item","SC/Li","Description","Unit","Scheduled Quantity","Rate","Amount\n(excluding VAT)"]
[null,null,"Carried over from Series 4: Water reticulation and water mains:"]
[]
["B402.13",null,"Horizontal drilling: "]
[null,null,"(in any soil condition, excluding of rock)"]
[null,null,".01     10 mm - 50 mm dia pipe","m",20]
[null,null,".02     51 mm - 80 mm dia pipe","m",20]
[null,null,".03     81 mm - 100 mm dia pipe","m",50]
[null,null,".04     101 mm - 150 mm dia pipe","m",{"v":3000,"d":"3,000"}]
[null,null,".05     151 mm - 200 mm dia pipe","m",{"v":2000,"d":"2,000"}]
[null,null,".06     201 mm - 250 mm dia pipe","m",200]
[null,null,".07     251 mm - 350 mm dia pipe","m",200]
[null,null,".08     351 mm - 450 mm dia pipe","m",100]
[null,null,".09     451 mm - 550 mm dia pipe","m",100]
[null,null,".10     551 mm - 650 mm dia pipe","m",130]
[null,null,".11     700 mm - 710 mm dia pipe","m",100]
[null,null,".12     800 mm - 810 mm dia pipe","m",100]
[]
["B402.14",null,"Connection to existing PVC / AC / HDPE water "]
[null,null,"reticulation pipes irrespective of depth","No",200]
[]
["B402.15","Li","Launching and exit pits ","no",100]
[]
["B402.16","Li","Excavate and Disconnect Existing Services","no",100]
[]
["B402.17",null,"Pipe Bursting of AC or GRP pipes, irrespective of diameter,"]
[null,null,"and Installation of the following new HDPE Pipe"]
[null,null,"         .01     110 mm dia","m",{"v":2000,"d":"2,000"}]
[null,null,"         .02     160 mm dia","m",{"v":2000,"d":"2,000"}]
[null,null,"         .03     200 mm dia","m",500]
[null,null,"         .04     250 mm dia","m",500]
[null,null,"         .05     315 mm dia","m",500]
[null,null,"         .06     355 mm dia","m",100]
[null,null,"         .07     400 mm dia","m",100]
[null,null,"         .08     500 mm dia","m",100]
[null,null,"         .09     630 mm dia","m",100]
[null,null,"         .10     710 mm dia","m",100]
[null,null,"         .11     800 mm dia","m",100]
[]
["B402.18",null,"Pipe Bursting of Steel Pipes, irrespective of diameter, "]
[null,null,"and Installation of the following new HDPE Pipe"]
[null,null,"         .01     110 mm dia","m",{"v":1000,"d":"1,000"}]
[null,null,"         .02     160 mm dia","m",{"v":1000,"d":"1,000"}]
[null,null,"         .03     200 mm dia","m",100]
[null,null,"         .04     250 mm dia","m",100]
[null,null,"         .05     315 mm dia","m",100]
[null,null,"         .06     355 mm dia","m",100]
[null,null,"         .07     400 mm dia","m",100]
[null,null,"         .08     500 mm dia","m",100]
[null,null,"         .09     630 mm dia","m",100]
[null,null,"         .10     710 mm dia","m",100]
[null,null,"         .11     800 mm dia","m",100]
[]
["B402.19",null,"Pipe Bursting of PVC pipes, irrespective of diameter,"]
[null,null,"and Installation of the following new HDPE Pipe"]
[null,null,"         .01     110 mm dia","m",500]
[null,null,"         .02     160 mm dia","m",500]
[null,null,"         .03     200 mm dia","m",100]
[null,null,"         .04     250 mm dia","m",100]
[null,null,"         .05     315 mm dia","m",100]
[null,null,"         .06     355 mm dia","m",100]
[null,null,"         .07     400 mm dia","m",100]
[null,null,"         .08     500 mm dia","m",100]
[null,null,"         .09     630 mm dia","m",100]
[null,null,"         .10     710 mm dia","m",100]
[null,null,"         .11     800 mm dia","m",100]
[]
[]
[]
[]
[]
[]
["TOTAL CARRIED TO NEXT PAGE"]
["Item","SC/Li","Description","Unit","Scheduled Quantity","Rate","Amount\n(excluding VAT)"]
[null,null,"Carried over from Series 4: Water reticulation and water mains:"]
[]
["B402.20",null,"Supply and installation of flanged adapters"]
[null,null,"by butt welding for the following HDPE pipes:"]
[null,null," (SABS 1123 Table 16)  "]
[null,null,"         .01     110 mm dia","no",20]
[null,null,"         .02     160 mm dia","no",20]
[null,null,"         .03     200 mm dia","no",10]
[null,null,"         .04     250 mm dia","no",10]
[null,null,"         .05     315 mm dia","no",10]
[null,null,"         .06     355 mm dia","no",10]
[null,null,"         .07     400 mm dia","no",10]
[null,null,"         .08     500 mm dia","no",10]
[null,null,"         .09     630 mm dia","no",10]
[null,null,"         .10     710 mm dia","no",10]
[null,null,"         .11     800 mm dia","no",50]
[]
["B402.21","SC/Li","Supply and installation of temporary HDPE pipes"]
[null,null,"(to ensure permanent water supply to all users):"]
[null,null,".01     63mm","no",500]
[null,null,".02    110mm","no",{"v":2000,"d":"2,000"}]
[null,null,".03    160mm","no",500]
[]
["B402.22","Li","Remove existing t-pieces, couplings, saddles and "]
[null,null,"bends on existing pipes before pipe bursting","no",100]
[]
[]
["TOTAL CARRIED TO SUMMARY PAGE"]
["Item","SC/Li","Description","Unit","Scheduled Quantity","Rate","Amount\n(excluding VAT)"]
[]
[null,null,"SERIES 4:  WATER RETICULATION AND "]
[null,null,"WATER MAINS"]
[]
[null,null,"SECTION 403:  TESTING"]
[]
["403.01",null,"Hydraulic field-testing of pipelines"]
[]
[null,null,"         .01     110 mm dia","m",{"$f":"I1952","v":{"v":12050,"d":"12,050"}},{"$nulls":3},12050]
[null,null,"         .02     160 mm dia","m",{"$f":"I1953","v":{"v":12050,"d":"12,050"}},{"$nulls":3},12050]
[null,null,"         .03     200 mm dia","m",{"v":4050,"d":"4,050"},{"$nulls":3},4050]
[null,null,"         .04     250 mm dia","m",{"v":4050,"d":"4,050"},{"$nulls":3},4050]
[null,null,"         .05     315 mm dia","m",{"v":3050,"d":"3,050"},{"$nulls":3},3050]
[null,null,"         .06     355 mm dia","m",{"v":1000,"d":"1,000"},{"$nulls":3},1000]
[null,null,"         .07     400 mm dia","m",{"v":2050,"d":"2,050"},{"$nulls":3},2050]
[null,null,"         .08     450 mm dia","m",500,{"$nulls":3},500]
[null,null,"         .09     500 mm dia","m",500,{"$nulls":3},500]
[null,null,"         .10     630 mm dia","m",550,{"$nulls":3},550]
[null,null,"         .11     710 mm dia","m",100]
[null,null,"         .12     800 mm dia","m",{"v":2630,"d":"2,630"}]
[]
["TOTAL CARRIED TO SUMMARY PAGE"]
["Item","SC/Li","Description","Unit","Scheduled Quantity","Rate","Amount\n(excluding VAT)"]
[]
[null,null,"SERIES 5 : DRAINAGE AND EROSION PROTECTION"]
[null,null,"SECTION 503 : KERBING AND CHANNELLING"]
[]
["B503.01",null,"Concrete kerbing (Refer to drawing STD007 1 of 2) “LI”"]
[null,null," .01 Supply and installation of the following Kerbings: (Drawing STD007 1 of 2)"]
[null,"SC","   .01 Semi-vertical kerb with channel","m",50]
[null,"SC","   .02 Semi-vertical kerb on curved sections","m",50]
[null,"SC","   .03 Semi-vertical kerb along straight sections","m",100]
[]
[null,null,".02 Construction of  Slope Kerbings in position (Drawing STD007 1 of 2) "]
[null,"SC","   .01  300 sloping kerb","m",100]
[null,"SC","   .02  400 sloping kerb","m",100]
[]
[]
[]
[]
["TOTAL CARRIED TO SUMMARY"]
["Item","SC/Li","Description","Unit","Scheduled Quantity","Rate","Amount\n(excluding VAT)"]
[]
[null,null,"SERIES 5 : DRAINAGE AND EROSION PROTECTION"]
[505,null,"SECTION 505 : EROSION PROTECTION"]
[]
["505.01",null,"Foundation trench excavation and backfilling"]
[]
[null,null,".01.    In all other classes of material","m³",20]
[]
["505.02",null,"Surface preparation for the bedding of gabions","m²",20]
[]
["LI505.03",null,"Gabions "]
[]
[null,null,".01    1.0m x 1.0m x 1.0m (100x100mm mesh)","m³",20]
[]
[null,null,".02    1.0m x 1.0m x 0.5m (100x100mm mesh)","m³",20]
[]
[null,null,".0 3    2.0m x 6.0m x 0.23m (60x80mm mesh)","m³",20]
[]
["505.04",null,"Extra over item 505.03 for supplying gabions with PVC-coated wire","m³",20]
[]
["505.05",null,"Filter fabric for gabions and riprap (geotextile bidum A4)","m²",40]
[]
["LI505.06",null,"Stone pitching"]
[]
[null,null,".02    Grouted pitching","m²",40]
[]
["LI505.09",null,"Concrete pitching"]
[]
[null,null,".02   Interlocking precast concrete block pitching (Armorflex Lining)  to COT detail","m²",40]
[]
["TOTAL CARRIED TO SUMMARY"]
["Item","SC/Li","Description","Unit","Scheduled Quantity","Rate","Amount\n(excluding VAT)"]
[null,null,"SERIES 6: ROADS AND PARKING AREA"]
[null,null,"SECTION 609 : SEGMENTED PAVING"]
[]
["B609.01","SC/Li","CONSTRUCTION OF SEGMENTAL BLOCK PAVING (Refer to drawing STD008 1 of 1) “LI”"]
[null,"SC/Li"," .02  Repairs of segmented paving"]
[null,null," (the rate will include the mark-up-, storage-, "]
[null,null,"handling-, and transport cost to the site of works) ","m² ",1500]
[]
[null,null,".03 Supply of segmental block paving (Reimbursement shall be","Per 1000"]
[null,null,"for the actual purchase cost of the paving blocks plus 10% )",null,"Rate as per approved Tax Invoice"]
[]
["B609.07","SC/Li","CONSTRUCTION OF BRICK PAVING"]
[null,"SC/Li"," .02  Repairs of brick paving"]
[null,null," (the rate will include the mark-up-, storage-, "]
[null,null,"handling-, and transport cost to the site of works) ","m² ",{"v":1200,"d":"1200.00"}]
[]
[null,null,".03 Supply of brick paving (Reimbursement shall be for the actual purchase cost of the paving blocks plus 10% )","Per 1000",{"v":5,"d":"5.00"}]
[]
[609.03,null,"The construction of edge restraints with"]
[null,"SC/Li",".02 Construction of  edge restraint in position ","m ",400]
[]
["CARRIED FORWARD TO SUMMARY"]
["Item","SC/Li","Description","Unit","Scheduled Quantity","Rate","Amount\n(excluding VAT)"]
[null,null,"SERIES 6: ROADS AND PARKING AREA"]
[]
[null,null,"SECTION 610 : CONCRETE PAVEMENTS"]
[]
[" B1",null,"CONSTRUCTION OF CONCRETE PAVING (Refer to drawing STD008 1 of 1)"]
[]
["B610.01","SC/Li"," Concrete pavement"]
[]
[null,null,".01 Repair of all concrete pavements"]
[null,null,"for concrete from 100mm up to125 mm thick.","m²",1500]
[]
[]
["B610.08","Li","Imprint Concrete pavement "]
[]
[null,null,"  .01 Repair of all concrete pavements"]
[null,null,"       for concrete from 100mm up to125 mm thick.","m²",500]
[]
["CARRIED FORWARD TO SUMMARY"]
["Item","SC/Li","Description","Unit","Scheduled Quantity","Rate","Amount\n(excluding VAT)"]
[null,null,"SERIES 7: STRUCTURES"]
[]
[701,null,"SECTION 701 : FOUNDATIONS FOR STRUCTURES "]
[]
["701.01",null,"Additional foundation investigations","No",1]
[]
["701.02",null,"Excavation for structures "]
[]
["701.02.01",null,"Excavation of soft material situated in the    following depth ranges:"]
[]
["701.02.01.01",null,".01.01  0 m up to 2 m","m³",57]
["701.02.01.02",null,".01.02  Exceeding 2 m up to 4 m","m³",29]
[]
["701.02.02",null,"Extra over sub-item 701.02.01 for excavation in hard material irrespective of depth","m³",34]
[]
["701.02.03",null,"Extra over sub-item 701.02.01 for additional  excavation required by the Engineer after the excavation has been completed","m³",50]
[]
["701.04",null,"Dewatering of foundation excavations","Lump Sum",1]
[]
["701.05",null,"Backfill to excavations utilizing:"]
[]
["701.05.01",null,"Material from the excavations compacted to:"]
[]
[null,null,".01.01  95% of Mod AASHTO","m³",29]
[]
["701.05.02",null,"Imported Material compacted to:"]
[]
["701.05.02.01",null,"95% of Mod AASHTO (Min G7 material to TRH14)","m³",15]
[]
["B701.14",null,"Removal of spoil material "]
[]
["B701.14.01",null,"To positions provided by the contractor ","m³",57]
[]
[]
["CARRIED FORWARD TO SUMMARY"]
["Item","SC/Li","Description","Unit","Scheduled Quantity","Rate","Amount\n(excluding VAT)"]
[null,null,"SERIES 7: STRUCTURES"]
[]
[702,null,"SECTION 702 : FALSEWORK, FORMWORK AND CONCRETE FINISH"]
[]
["702.02",null,"Formwork class F2 surface finish"]
[]
["702.02.01",null,"Single-surface formwork"]
[]
[null,null,".01.01  Plane, horizontal, internally  to soffit of main roof slab","m2",19]
[]
[null,null,".01.02  Plane, horizontal, externally to soffit of main roof slab","m2",19]
[]
["702.02.02",null,"Double-surface formwork (both sides measured)"]
[]
[null,null,".02.01  Plane, vertical, to walls","m2",59]
[]
["702.06",null,"Formwork to openings","m2",5]
[]
["Section 703",null,"STEEL REINFORCEMENT FOR STRUCTURES"]
[]
["703.03",null,"Welded steel fabric for - "]
[]
["703.03.01",null,"Floor slab of building"]
[]
[null,null,".01.01  Ref 395","kg",57]
[]
["703.04",null,"Reinforcement for: All foundations, walls, column, slab and roof slab"]
[]
["703.04.02",null,"High-yield-stress steel"]
[]
[null,null,".02.01  Bars with 8 mm dia ","t",1]
[]
[null,null,".02.02  Bars with 10 mm dia ","t",1]
[]
[null,null,".02.03  Bars with 12 mm dia ","t",1]
[]
[null,null,".02.03  Bars with 16 mm dia","t",1]
[]
["CARRIED FORWARD TO SUMMARY"]
["Item","SC/Li","Description","Unit","Scheduled Quantity","Rate","Amount\n(excluding VAT)"]
[null,null,"SERIES 7: STRUCTURES"]
[]
[704.01,null,"SECTION 704 : CAST IN SITU CONCRETE"]
[]
["704.01.01",null,"Class 30/19 mm concrete. "]
[null,null,"Concrete for water retaining structures as per specialist design:"]
[null,null,"Cement content to be 420 kg/m³"]
[null,null,"Cement type to be CEM2 B-V"]
[null,null,"Water Cement Ratio to be 0.4"]
[]
[null,null,".01.01  Foundation and walls","m³",20]
[]
[null,null,".01.02  Roof slabs","m³",5]
[]
["704.01.02",null,"Class 15/19 concrete"]
[]
[null,null,".02.01  75 mm thick blinding layer and forming around sump","m³",1]
[]
[null,null,".02.02  Concrete Screed to Falls (1 Cement CEM1:5 River sand)","m³",1]
[]
["B701.15",null,"MISCELLANEOUS VALVE CHAMBER ITEMS"]
[]
["B701.15.01",null,"Stainless steel cat ladders supplied and installed as per CoT details (Drawing No 7515-VC222). Approx 3 m long, with 20 dia plug welded rungs, bolted to wall and floor with chemical anchors; all inclusive.","No",1]
[]
["B701.15.02",null,"250mmØ x 1180mm Bollard supplied and installed: Wilson's Commodore Bollard or similar approved with exposed aggregate planted to 400mm deep, refer CoT detail ","No",8]
[]
["B701.15.03",null,"Waterproofing: 3 Coats of a Heavy waterproofing compound applied to the external walls. Use ABE Super Laykold or similar approved.","m2",59]
[]
["B701.15.04",null,"Manhole Access: \"Screw Lid\" manhole access unit supplied and installed as manufactured by \"Concrete Doors and Vaults\" or similar approved. Refer CoT Detail Drawing No 7515-VC223.","No",1]
[]
["B701.15.05",null,"Strap and Pipe Support steel work on concrete pedestal: Refer CoT Detail Drawing No 7515-VC219. Concrete for support work measured elsewhere. ","No",1]
[]
["B701.15.06",null,"Vermin Proof Air vent supplied and installed: Refer CoT Detail Drawing No 7515-VC222.","No",1]
[]
["B701.15.07",null,"500mm x 500mm Sump completely supplied and installed with 150mm x 110mm PVC-U Sewer Gulley with CI Grate at low point. Refer CoT Detail Drawing No 7515-VC207.","No",1]
{"$rows_empty":21}
["CARRIED FORWARD TO SUMMARY"]
["Item","SC/Li","Description","Unit","Scheduled Quantity","Rate","Amount\n(excluding VAT)"]
[null,null,"SERIES 8: SPECIFIC WORKS"]
[]
[804,null,"SECTION 804 : PIPE JACKING AND BORING"]
[]
[804.01,null,"Establishment on Site for"]
[null,null,".01  Pipe jacking","Lump Sum/ per project",1]
[]
[804.02,null,"Access to and from the thrust and reception pits","Lump Sum/ per project",1]
[]
[804.03,null,"Excavating in soft material for"]
[null,null,".01  Thrust and reception pits","m³",74]
[null,null,".02  Pipe boring pits","m³",24]
[]
[804.04,null,"Extra over item 804.03 for excavating hard material","m³",38]
[]
[804.05,null,"Backfilling the"]
[]
["804.05.01",null,"Thrust and reception pits with:"]
[null,null,".01  Excavated material","m³",73]
[null,null,".02  Imported material","m³",7.3]
[]
["804.05.02",null,"Pipe boring pits with:"]
[null,null,".01  Excavated material","m³",24]
[null,null,".02  Imported material","m³",1]
[]
[804.06,null,"Supply of pipes to be jacked"]
[null,null,".01  1200mm dia RC Class 100D","m",136]
[null,null,".02   900mm dia RC Class 100D","m",10]
[]
[804.07,null,"Jacking of pipes through :"]
[null,null,".01  Soft material","m³",161]
[null,null,".02  Hard material","m³",64]
[]
[804.08,null,"Boring of holes through :"]
[null,null,".01  Soft material"]
[null,null,".01.01  60mm dia","m",15]
[null,null,".02  Hard material"]
[null,null,".02.01  160mm dia","m",6]
[]
[804.09,null,"Supplying, jointing and inserting pipes"]
[null,null,".01  HDPE PE 100 16,  160mm diam.","m",15]
[null,null,".02  HDPE PE 100 16,  630mm diam.","m",127]
[null,null,".03  HDPE PE 100 16,  800mm diam.","m",9]
[]
[{"v":804.1,"d":"804.10"},null,"The grouting of voids for pipe jacking"]
[null,null,".10.01  Unforseen and exposed during jacking","kg",5]
[null,null,".10.02  Between pipeline and surrounding material\n           after jacking has been completed"]
[]
[null,null,".10.02.01  1200mm dia RC Class 100D","m",46]
[]
[null,null,".10.02.02  900mm RC Class 100D","m",4]
[]
[804.12,null,"Timbering and shoring left temporarily in the thrust and reception pits and pipe boring pits","week",2]
[]
[]
["CARRIED FORWARD TO SUMMARY"]
["Item","SC/Li","Description","Unit","Scheduled Quantity","Rate","Amount\n(excluding VAT)"]
[null,null,"SERIES 9: QUALITY CONTROL "]
[]
[903,null,"SECTION 903 : TESTING"]
[]
[903.06,null,"Other special tests required by the Engineer"]
[null,null,".01  Cost of testing ","No",3]
[]
[null,null,"CARRIED FORWARD TO SUMMARY"]
[]
[null,null,"TOTAL SUMMARY AREA A (REGION 1 AND 2)"]
[null,null,"Description",{"$nulls":3},"Amount\n(excluding VAT)"]
[null,null,"SECTION 001 : GENERAL REQUIREMENTS AND CHARGES"]
[null,null,"SECTION 002 : ENGINEER'S ACCOMMODATION"]
[null,null,"SECTION 101 : SITE CLEARING AND GRUBBING"]
[null,null,"SECTION 102 : ACCOMODATION OF TRAFFIC"]
[null,null,"SECTION 103:  OVERHAUL"]
[null,null,"SECTION 104 : LANDSCAPING AND GRASSING"]
[null,null,"SECTION 105:  FENCING"]
[null,null,"SECTION 202 : TRENCHING"]
[null,null,"SECTION 402 : CONSTRUCTION"]
[null,null,"SECTION 403 : TESTING"]
[null,null,"SECTION 503: KERBING AND CHANNELLING"]
[null,null,"SECTION 505: EROSION PROTECTION"]
[null,null,"SECTION 609: SEGMENTED PAVING"]
[null,null,"SECTION 610: CONCRETE PAVEMENTS"]
[null,null,"SECTION 701 : FOUNDATIONS FOR STRUCTURES "]
[null,null,"SECTION 702 : FALSEWORK, FORMWORK AND CONCRETE FINISH"]
[null,null,"SECTION 704 : CAST IN SITU CONCRETE"]
[null,null,"SECTION 804: PIPE JACKING AND BORING"]
[null,null,"SECTION 903 : TESTING"]
[null,null,"TOTAL SCHEDULE OF QUANTITIES "]
[null,null,"Add 10% of Total Schedule of Quantities for Contingencies"]
[null,null,"Add 5% of Total Schedule of Quantities and Contingencies for Escalation Allowance (CPA)"]
[null,null,"TENDER AMOUNT EXCLUDING VAT "]
[null,null,"Value Added Tax"]
[null,null,"TENDER AMOUNT INCLUDING VAT "]
[]
[null,null,"Take note that the rates are fixed but the quantities will vary subject to the scope of work per project."]
[null,null,"Take note that this is a rate only tender and the rates will be approved."]